{"text_format":"1","workbook":"xlsx","n_sheets":12,"sheets":["Devices","Mobility S, Pager Seats","Mobility M, B Seats","Mobility iPads","Mobility AirCards","Validations","CLINCOST","BASE CLIN","AS-IS Data","Categories","Locations","Instructions"],"not_rendered":{"charts":0,"images":0,"macros":1,"external_links":0,"defined_names":371,"comments":4,"pivot_tables":0},"unopened":[],"bounds":{"document_bytes":16777216,"sheet_cells":100000,"rows_first":2000,"rows_last":500,"rows_between":2000,"halvings":0,"cell_chars":16384,"cell_head_chars":4096},"cells_cut":0,"cells_raw":0,"read":"whole","date_system":"1900"}

{"sheet":"Devices","index":0,"n_rows":132,"n_cols":15,"rows_kept":132,"cut":false,"hidden":true,"merged":[]}
["Seat ID","Seat Type","Carrier",{"$f":"CONCATENATE(A1,\"_\",B1,\"_\",C1)","v":"Seat ID_Seat Type_Carrier"},"Lookup","Additional Instrument CLIN",null,null,"Manufacturer","Make","Device",null,"Status"]
["S","Cell Phone","AT&T","S_Cell Phone_AT&T","_CP1",null,null,null,"Samsung","Flight II",{"$f":"CONCATENATE(I2,\" - \",J2)","v":"Samsung - Flight II"}]
["S","Cell Phone","T-Mobile","S_Cell Phone_T-Mobile","_CP2",null,null,null,"Blackberry","Curve 9360","Blackberry - Curve 9360"]
["S","Cell Phone","Verizon","S_Cell Phone_Verizon","_CP3",null,null,null,"Casio","Ravine 2","Casio - Ravine 2"]
["S","Cell Phone (Push to Talk)","Verizon","S_Cell Phone (Push to Talk)_Verizon","_CP4",null,null,null,"Casio","Ravine 2",{"$f":"CONCATENATE(I5,\" - \",J5)","v":"Casio - Ravine 2"}]
["S","Smart Phone (RIM)","AT&T","S_Smart Phone (RIM)_AT&T","_R1",null,null,null,"Blackberry","Torch 9810","Blackberry - Torch 9810"]
["S","Smart Phone (RIM)","T-Mobile","S_Smart Phone (RIM)_T-Mobile","_R2",null,null,null,"Blackberry","Bold 9780","Blackberry - Bold 9780"]
["S","Smart Phone (RIM)","Verizon","S_Smart Phone (RIM)_Verizon","_R3",null,null,null,"Blackberry","Bold 9650","Blackberry - Bold 9650"]
["S","Smart Phone (Apple)","AT&T","S_Smart Phone (Apple)_AT&T","_A1",null,null,null,"Apple","iPhone 4S 16GB","Apple - iPhone 4S 16GB"]
["S","Smart Phone (Apple)","T-Mobile","S_Smart Phone (Apple)_T-Mobile","_A2",null,null,null,null,null,"N/A"]
["S","Smart Phone (Apple)","Verizon","S_Smart Phone (Apple)_Verizon","_A3",null,null,null,"Apple","iPhone 4S 16GB",{"$f":"CONCATENATE(I11,\" - \",J11)","v":"Apple - iPhone 4S 16GB"}]
["B","Cell Phone","AT&T","B_Cell Phone_AT&T","_CP1","F-1"]
["B","Cell Phone","T-Mobile","B_Cell Phone_T-Mobile","_CP2","F-14"]
["B","Cell Phone","Verizon","B_Cell Phone_Verizon","_CP3","F-27"]
["B","Cell Phone - No HW","AT&T","B_Cell Phone - No HW_AT&T","_SPN"]
["B","Cell Phone - No HW","T-Mobile","B_Cell Phone - No HW_T-Mobile","_SPN"]
["B","Cell Phone - No HW","Verizon","B_Cell Phone - No HW_Verizon","_SPN"]
["B","Smart Phone - No HW","AT&T",{"$f":"CONCATENATE(A18,\"_\",B18,\"_\",C18)","v":"B_Smart Phone - No HW_AT&T"},"_SPN"]
["B","Smart Phone - No HW","T-Mobile","B_Smart Phone - No HW_T-Mobile","_SPN"]
["B","Smart Phone - No HW","Verizon","B_Smart Phone - No HW_Verizon","_SPN","H-1",null,null,null,null,"N/A"]
["B","Smart Phone (RIM)","AT&T","B_Smart Phone (RIM)_AT&T","_R1","H-2"]
["B","Smart Phone (Apple)","AT&T","B_Smart Phone (Apple)_AT&T","_A1","H-3"]
["B","SmartPhone (Other)","AT&T","B_SmartPhone (Other)_AT&T","_O1","H-4"]
["B","Smart Phone - No HW","T-Mobile","B_Smart Phone - No HW_T-Mobile","_SPN","H-21"]
["B","Smart Phone (RIM)","T-Mobile","B_Smart Phone (RIM)_T-Mobile","_R2","H-22"]
["B","Smart Phone (Apple)","T-Mobile","B_Smart Phone (Apple)_T-Mobile","_A2","H-23"]
["B","Smart Phone (Other)","T-Mobile","B_Smart Phone (Other)_T-Mobile","_O2","H-24"]
["B","Smart Phone - No HW","Verizon","B_Smart Phone - No HW_Verizon","_SPN","H-41"]
["B","Smart Phone (RIM)","Verizon","B_Smart Phone (RIM)_Verizon","_R3","H-42"]
["B","Smart Phone (Apple)","Verizon","B_Smart Phone (Apple)_Verizon","_A3","H-43"]
["B","Smart Phone (Other)","Verizon","B_Smart Phone (Other)_Verizon","_O3","H-44"]
["M","Smart Phone (RIM)","AT&T",{"$f":"CONCATENATE(A32,\"_\",B32,\"_\",C32)","v":"M_Smart Phone (RIM)_AT&T"},"_R1","***Device CLINS listed below since CLINS broken out by devices"]
["M","Smart Phone (Apple)","AT&T","M_Smart Phone (Apple)_AT&T","_A1"]
["M","Smart Phone (RIM)","T-Mobile",{"$f":"CONCATENATE(A34,\"_\",B34,\"_\",C34)","v":"M_Smart Phone (RIM)_T-Mobile"},"_R2"]
["M","Smart Phone (Apple)","T-Mobile","M_Smart Phone (Apple)_T-Mobile","_A2"]
["M","Smart Phone (RIM)","Verizon","M_Smart Phone (RIM)_Verizon","_R3"]
["M","Smart Phone (Apple)","Verizon","M_Smart Phone (Apple)_Verizon","_A3"]
["Pager","Numeric","American Messaging",{"$f":"CONCATENATE(A38,\"_\",B38,\"_\",C38)","v":"Pager_Numeric_American Messaging"},"_PN","I-1",null,null,"Sun Telecom","Z400",{"$f":"CONCATENATE(I38,\" - \",J38)","v":"Sun Telecom - Z400"}]
["Pager","Alphanumeric One-way","American Messaging","Pager_Alphanumeric One-way_American Messaging","_P1","I-2",null,null,"Unication","Elite","Unication - Elite"]
["Pager","Alphanumeric Two-way","American Messaging","Pager_Alphanumeric Two-way_American Messaging","_P2","I-3",null,null,"Unication","P900","Unication - P900"]
["Pager","Numeric","USA Mobility",{"$f":"CONCATENATE(A41,\"_\",B41,\"_\",C41)","v":"Pager_Numeric_USA Mobility"},"_PNU","I-14",null,null,"USA Mobility","Numeric","USA Mobility - Numeric"]
["Pager","Alphanumeric One-way","USA Mobility",{"$f":"CONCATENATE(A42,\"_\",B42,\"_\",C42)","v":"Pager_Alphanumeric One-way_USA Mobility"},"_P1U","I-15",null,null,"USA Mobility","One Way","USA Mobility - One Way"]
["Pager","Alphanumeric Two-way","USA Mobility",{"$f":"CONCATENATE(A43,\"_\",B43,\"_\",C43)","v":"Pager_Alphanumeric Two-way_USA Mobility"},"_P2U","I-16",null,null,"USA Mobility","Two Way","USA Mobility - Two Way"]
["Aircard","Wireless Aircard","AT&T","Aircard_Wireless Aircard_AT&T","_AC1","S-7"]
["Aircard","Wireless Aircard","T-Mobile","Aircard_Wireless Aircard_T-Mobile","_AC2","S-7","???????"]
["Aircard","Wireless Aircard","Verizon","Aircard_Wireless Aircard_Verizon","_AC3","S-13"]
["Aircard","MIFI Hotspot","AT&T","Aircard_MIFI Hotspot_AT&T","_MI1","S-16,S-17"]
["Aircard","MIFI Hotspot","T-Mobile",{"$f":"CONCATENATE(A48,\"_\",B48,\"_\",C48)","v":"Aircard_MIFI Hotspot_T-Mobile"},"_MI2","S-18,S-19"]
["Aircard","MIFI Hotspot","Verizon",{"$f":"CONCATENATE(A49,\"_\",B49,\"_\",C49)","v":"Aircard_MIFI Hotspot_Verizon"},"_MI3","S-14,S-15"]
["Cancel","N/A","N/A",{"$f":"CONCATENATE(A50,\"_\",B50,\"_\",C50)","v":"Cancel_N/A_N/A"},"_A2"]
["iPad_S","iPad (WiFi only)","AT&T",{"$f":"CONCATENATE(A51,\"_\",B51,\"_\",C51)","v":"iPad_S_iPad (WiFi only)_AT&T"},"_IW1","T-1",null,null,"Apple","iPad 2 32GB (WiFi Only)",{"$f":"CONCATENATE(I51,\" - \",J51)","v":"Apple - iPad 2 32GB (WiFi Only)"}]
["iPad_S","iPad (WiFi only)","Verizon",{"$f":"CONCATENATE(A52,\"_\",B52,\"_\",C52)","v":"iPad_S_iPad (WiFi only)_Verizon"},"_IW1","T-1"]
["iPad_S","iPad (3G Data Plan)","AT&T","iPad_S_iPad (3G Data Plan)_AT&T","_ID1","T-2",null,null,"Apple","iPad 2 32GB (WiFi + 3G)",{"$f":"CONCATENATE(I53,\" - \",J53)","v":"Apple - iPad 2 32GB (WiFi + 3G)"}]
["iPad_S","iPad (3G Data Plan)","Verizon","iPad_S_iPad (3G Data Plan)_Verizon","_ID2","T-3",null,null,"Apple","iPad 2 32GB (WiFi + 3G)","Apple - iPad 2 32GB (WiFi + 3G)"]
["iPad_M","iPad (WiFi only)","AT&T",{"$f":"CONCATENATE(A55,\"_\",B55,\"_\",C55)","v":"iPad_M_iPad (WiFi only)_AT&T"},"_IW1","***Device CLINS listed below since CLINS broken out by devices"]
["iPad_M","iPad (WiFi only)","Verizon",{"$f":"CONCATENATE(A56,\"_\",B56,\"_\",C56)","v":"iPad_M_iPad (WiFi only)_Verizon"},"_IW1"]
["iPad_M","iPad (3G Data Plan)","AT&T","iPad_M_iPad (3G Data Plan)_AT&T","_ID1"]
["iPad_M","iPad (3G Data Plan)","Verizon","iPad_M_iPad (3G Data Plan)_Verizon","_ID1"]
["GO_Service_Only","iPad (WiFi only)","AT&T","GO_Service_Only_iPad (WiFi only)_AT&T","_S1"]
["GO_Service_Only","iPad (WiFi only)","Verizon",{"$f":"CONCATENATE(A60,\"_\",B60,\"_\",C60)","v":"GO_Service_Only_iPad (WiFi only)_Verizon"},"_S1"]
["GO_Service_Only","iPad (3G Data Plan)","AT&T","GO_Service_Only_iPad (3G Data Plan)_AT&T","_S1"]
["GO_Service_Only","iPad (3G Data Plan)","Verizon","GO_Service_Only_iPad (3G Data Plan)_Verizon","_S1"]
[]
[]
[]
[null,"B_CP1"]
["B_CP1","Manufacturer","Make","Device","B_CP2","Manufacturer","Make","Device","B_CP3","Manufacturer","Make","Device"]
[369.44,"Motorola","Tundra VA76r",{"$f":"CONCATENATE(B68,\" - \",C68)","v":"Motorola - Tundra VA76r"},57.46,"LG","GS170",{"$f":"CONCATENATE(F68,\" - \",G68)","v":"LG - GS170"},164.19,"Casio","Ravine 2",{"$f":"CONCATENATE(J68,\" - \",K68)","v":"Casio - Ravine 2"}]
[213.45,"Samsung","Flight II","Samsung - Flight II",106.72,"Samsung","SGH-t259",{"$f":"CONCATENATE(F69,\" - \",G69)","v":"Samsung - SGH-t259"}]
[229.87,"Samsung","Rugby II SGH-a847","Samsung - Rugby II SGH-a847",311.97000000000003,"Blackberry","Curve 9360",{"$f":"CONCATENATE(F70,\" - \",G70)","v":"Blackberry - Curve 9360"}]
[]
[]
[]
[]
[]
[]
[]
[]
["B_R1","Manufacturer","Make","Device","B_R2",null,null,null,"B_R3"]
[369.44,"Blackberry","Torch 9810",{"$f":"CONCATENATE(B80,\" - \",C80)","v":"Blackberry - Torch 9810"},369.44,"Blackberry","Bold 9780",{"$f":"CONCATENATE(F80,\" - \",G80)","v":"Blackberry - Bold 9780"},394.07,"BlackBerry","Bold 9650",{"$f":"CONCATENATE(J80,\" - \",K80)","v":"BlackBerry - Bold 9650"}]
[418.7,"BlackBerry","Curve 9300",{"$f":"CONCATENATE(B81,\" - \",C81)","v":"BlackBerry - Curve 9300"},492.59,"BlackBerry","Bold 9900",{"$f":"CONCATENATE(F81,\" - \",G81)","v":"BlackBerry - Bold 9900"},246.29,"BlackBerry","Curve 9330",{"$f":"CONCATENATE(J81,\" - \",K81)","v":"BlackBerry - Curve 9330"}]
[null,null,null,null,205.24,"BlackBerry","Curve 9300",{"$f":"CONCATENATE(F82,\" - \",G82)","v":"BlackBerry - Curve 9300"},394.07,"BlackBerry","Bold 9930",{"$f":"CONCATENATE(J82,\" - \",K82)","v":"BlackBerry - Bold 9930"}]
[]
[]
[]
[]
["B_A1",null,null,null,null,null,null,null,"B_A3"]
[649,"Apple","iPhone 4S 16GB",{"$f":"CONCATENATE(B88,\" - \",C88)","v":"Apple - iPhone 4S 16GB"},"B_A2","N/A",null,null,649.99,"Apple","iPhone 4S 16GB",{"$f":"CONCATENATE(J88,\" - \",K88)","v":"Apple - iPhone 4S 16GB"}]
[null,"Apple","iPhone 4S 32GB",{"$f":"CONCATENATE(B89,\" - \",C89)","v":"Apple - iPhone 4S 32GB"},"Cancel_A2",null,null,null,null,"Apple","iPhone 4S 32GB",{"$f":"CONCATENATE(J89,\" - \",K89)","v":"Apple - iPhone 4S 32GB"}]
[]
[]
[]
[]
[]
["B_O1","Samsung","Focus",{"$f":"CONCATENATE(B95,\" - \",C95)","v":"Samsung - Focus"},"B_O2","HTC","HD7",{"$f":"CONCATENATE(F95,\" - \",G95)","v":"HTC - HD7"},"B_O3","HTC","Trophy",{"$f":"CONCATENATE(J95,\" - \",K95)","v":"HTC - Trophy"}]
[null,null,null,null,null,"HTC","Touch Pro2",{"$f":"CONCATENATE(F96,\" - \",G96)","v":"HTC - Touch Pro2"}]
[]
[]
["Aircard_AC1"]
[null,"Sierra Wireless","USBConnect Shockwave 4G",{"$f":"CONCATENATE(B100,\" - \",C100)","v":"Sierra Wireless - USBConnect Shockwave 4G"},"Aircard_AC2",null,null,null,"Aircard_AC3"]
[null,"Sierra Wireless","USBConnect Momentum 4G",{"$f":"CONCATENATE(B101,\" - \",C101)","v":"Sierra Wireless - USBConnect Momentum 4G"},null,"T-Mobile","Rocket 3.0 4G Laptop Stick",{"$f":"CONCATENATE(F101,\" - \",G101)","v":"T-Mobile - Rocket 3.0 4G Laptop Stick"},null,"Novatel Wireless","Ovation USB760",{"$f":"CONCATENATE(J101,\" - \",K101)","v":"Novatel Wireless - Ovation USB760"}]
[null,"Sierra Wireless","USBConnect Force 4G",{"$f":"CONCATENATE(B102,\" - \",C102)","v":"Sierra Wireless - USBConnect Force 4G"},null,null,null,null,null,"Novatel Wireless","PC770 2-in-1 PC and Express Card",{"$f":"CONCATENATE(J102,\" - \",K102)","v":"Novatel Wireless - PC770 2-in-1 PC and Express Card"}]
[null,"Sierra Wireless","AC890 PCMCIA Modem",{"$f":"CONCATENATE(B103,\" - \",C103)","v":"Sierra Wireless - AC890 PCMCIA Modem"},null,null,null,null,null,"Pantech","4G LTE USB Modem Model UML290",{"$f":"CONCATENATE(J103,\" - \",K103)","v":"Pantech - 4G LTE USB Modem Model UML290"}]
[null,null,null,"Supported AT&T Aircard",null,null,null,null,null,"Verizon Wireless","4G LTE USB Modem 551L",{"$f":"CONCATENATE(J104,\" - \",K104)","v":"Verizon Wireless - 4G LTE USB Modem 551L"}]
[null,null,null,null,null,null,null,null,null,null,null,"Supported Verizon Aircard"]
[]
[]
[]
[]
["Aircard_MI1",null,null,null,"Aircard_MI2",null,null,null,"Aircard_MI3"]
[null,"Sierra Wireless","Mobile Hotspot Elevate 4G",{"$f":"CONCATENATE(B111,\" - \",C111)","v":"Sierra Wireless - Mobile Hotspot Elevate 4G"},null,"T-Mobile","Rocket 4G Mobile hotspot",{"$f":"CONCATENATE(F111,\" - \",G111)","v":"T-Mobile - Rocket 4G Mobile hotspot"},null,"Verizon Wireless","FiveSpot 3G Mobile Hotspot",{"$f":"CONCATENATE(J111,\" - \",K111)","v":"Verizon Wireless - FiveSpot 3G Mobile Hotspot"}]
[null,"Novatel Wireless","MiFi 2200 Intelligent Mobile Hotspot",{"$f":"CONCATENATE(B112,\" - \",C112)","v":"Novatel Wireless - MiFi 2200 Intelligent Mobile Hotspot"},null,null,null,null,null,"Novatel Wireless","MiFi 2200 Intelligent Mobile Hotspot",{"$f":"CONCATENATE(J112,\" - \",K112)","v":"Novatel Wireless - MiFi 2200 Intelligent Mobile Hotspot"}]
[null,null,null,"Supported AT&T Hotspot Device",null,null,null,"Supported T-Mobile Hotspot Device",null,null,null,"Supported Verizon MiFi Device"]
[]
[]
["M_R1","Manufacturer","Make","Device","CLIN","M_R2",null,null,null,null,"M_R3",null,null,"Device","CLIN"]
[null,"Blackberry","Torch 9810",{"$f":"CONCATENATE(B117,\" - \",C117)","v":"Blackberry - Torch 9810"},"GG-1",null,"Blackberry","Bold 9780","Blackberry - Bold 9780","GG-26",null,"BlackBerry","Bold 9650","BlackBerry - Bold 9650","GG-51"]
[null,"BlackBerry","Torch 9860",{"$f":"CONCATENATE(B118,\" - \",C118)","v":"BlackBerry - Torch 9860"},"GG-2",null,"BlackBerry","Bold 9900","BlackBerry - Bold 9900","GG-27",null,"BlackBerry","Bold 9930","BlackBerry - Bold 9930","GG-52"]
[]
["M_A1",null,null,null,null,null,null,null,null,null,"M_A3"]
[null,"Apple","iPhone 4S 32GB",{"$f":"CONCATENATE(B121,\" - \",C121)","v":"Apple - iPhone 4S 32GB"},"GG-3","M_A2","N/A",null,null,null,null,"Apple","iPhone 4S 32GB",{"$f":"CONCATENATE(L121,\" - \",M121)","v":"Apple - iPhone 4S 32GB"},"GG-53"]
[null,"Apple","iPhone 4S 64GB",{"$f":"CONCATENATE(B122,\" - \",C122)","v":"Apple - iPhone 4S 64GB"},"GG-4","Cancel_A2",null,null,null,null,null,"Apple","iPhone 4S 64GB",{"$f":"CONCATENATE(L122,\" - \",M122)","v":"Apple - iPhone 4S 64GB"},"GG-54"]
[]
[]
["iPad_M_IW1"]
[null,"Apple","iPad 2 32GB (WiFi Only)",{"$f":"CONCATENATE(B126,\" - \",C126)","v":"Apple - iPad 2 32GB (WiFi Only)"},"U-2"]
[null,"Apple","iPad 2 64GB (WiFi Only)",{"$f":"CONCATENATE(B127,\" - \",C127)","v":"Apple - iPad 2 64GB (WiFi Only)"},"U-4"]
[]
[]
["iPad_M_ID1"]
[null,"Apple","iPad 2 32GB (WiFi + 3G)",{"$f":"CONCATENATE(B131,\" - \",C131)","v":"Apple - iPad 2 32GB (WiFi + 3G)"},"U-3"]
[null,"Apple","iPad 2 64GB (WiFi + 3G)",{"$f":"CONCATENATE(B132,\" - \",C132)","v":"Apple - iPad 2 64GB (WiFi + 3G)"},"U-5"]

{"sheet":"Mobility S, Pager Seats","index":1,"n_rows":5,"n_cols":35,"rows_kept":5,"cut":false,"hidden":false,"merged":[]}
["Version: ",1.08,null,null,null,null,null,null,"* Indicates Required Fields"]
["ID: ","SPG",null,null,"*** Subject to mutual agreement between HPES and NASA for addition of new CLINs for Verizon, USA Mobility, International Calling ***"]
["Center: ","KSC",null,null,"POC NAME or Initials:","Jane Doe"]
["Order Number: ",83501,null,null,"POC ID:","533"]
["*Order ID","*Existing Mobile Line Number","Existing Asset Type","Existing Asset Tag","Existing Model","Existing Make","*Existing Carrier","*Eligibility Date","*First Name","*Last Name","Seat Organization","*Seat Building","*Seat Room","*Additional Phone Number","*AUID","*UUPIC","*Site Code","*Cost Center","*ACES Seat Identifier","*Detailed Seat Type","*Carrier","*Device","*Instrument Disposition","*Domestic Calling Plan/Service Plan","*Voice mail","*Tethering","*International Calling Plan","*International Data Plan ","*International Texting","*Camera","*Octel Message Notification","*Return to Service (RTS)","Base CLINS","Additional CLINS","Estimated Cost"]

{"sheet":"Mobility M, B Seats","index":2,"n_rows":5,"n_cols":35,"rows_kept":5,"cut":false,"hidden":false,"merged":[]}
[null,null,null,null,null,null,null,null,"* Indicates Required Fields"]
["ID: ","BST",null,null,"*** Subject to mutual agreement between HPES and NASA for addition of new CLINs for International Calling ***"]
[]
[]
["*Order ID","*Existing Mobile Line Number","Existing Asset Type","Existing Asset Tag","Existing Model","Existing Make","*Existing Carrier","*Eligibility Date","*First Name","*Last Name","Seat Organization","*Seat Building","*Seat Room","*Additional Phone Number","*AUID","*UUPIC","*Site Code","*Cost Center","*ACES Seat Identifier","*Detailed Seat Type","*Carrier","*Device","*Instrument Disposition","Domestic Calling Plan/Service Plan","*Voice mail","*Tethering","*International Calling Plan","*International Data Plan ","*International Texting","*Camera","*Octel Message Notification","*Return to Service (RTS)","Base CLINS","Additional CLINS","Estimated Cost"]

{"sheet":"Mobility iPads","index":3,"n_rows":5,"n_cols":34,"rows_kept":5,"cut":false,"hidden":false,"merged":[]}
[null,null,null,null,null,null,null,null,"* Indicates Required Fields"]
["ID: ","PAD",null,null,"*** Subject to mutual agreement between HPES and NASA for addition of new CLINs for International Calling ***"]
[]
[]
["*Order ID","Existing Mobile Line Number","Existing Asset Type","Existing Asset Tag","Existing Model","Existing Make","Existing Carrier","*Eligibility Date","*First Name","*Last Name","Seat Organization","*Seat Building","*Seat Room","*Additional Phone Number","*AUID","*UUPIC","*Site Code","*Cost Center","*ACES Seat Identifier","*Detailed Seat Type","*Carrier","*Device","*Instrument Disposition","Domestic Data Plan/Service Plan","*Voice mail","*Tethering","*International Calling Plan","*International Data Plan","*Camera","*Octel Message Notification","*Return to Service (RTS)","Base CLINS","Additional CLINS","Estimated Cost"]

{"sheet":"Mobility AirCards","index":4,"n_rows":5,"n_cols":26,"rows_kept":5,"cut":false,"hidden":false,"merged":[]}
[null,null,null,null,null,null,null,null,"* Indicates Required Fields"]
["ID: ","AIR",null,null,"*** Subject to mutual agreement between HPES and NASA for addition of new CLINs for International Calling ***"]
[]
[]
["*Order ID","*Existing Mobile Line Number","Existing Asset Type","Existing Asset Tag","Existing Model","Existing Make","*Existing Carrier","*Eligibility Date","*First Name","*Last Name","Seat Organization","*Seat Building","*Seat Room","*Additional Phone Number","*AUID","*UUPIC","*Site Code","*Cost Center","*ACES Seat Identifier","*Detailed Seat Type","*Carrier","*Device","*Instrument Disposition","*International Data Plan","CLINS","Estimated Cost"]

{"sheet":"Validations","index":5,"n_rows":11,"n_cols":1,"rows_kept":11,"cut":false,"hidden":true,"merged":[]}
[]
[]
[]
[]
["SPG"]
[]
["BST"]
[]
["AIR"]
[]
["PAD"]

{"sheet":"CLINCOST","index":6,"n_rows":267,"n_cols":6,"rows_kept":267,"cut":false,"hidden":true,"merged":[]}
["CLIN","Cost",null,"Comments"]
["E-1",33.28,null," AT&T (Carrier 1)","Cost",27.39]
["E-2",28.52,null," T Mobile (Carrier 2)","String"]
["E-3",36.78,null,"Verizon (Carrier 3)"]
["E-4",46.78,null,"Verizon with Push To Talk"]
["F-1",0,"17.9% off of MSRP - OTC","AT&T-Carrier 1 Instrument (Product Line)"]
["F-2",0,null,"Carrier 1-Hardware Refresh (None)"]
["F-3",25.94,null,"Carrier 1-Domestic Calling Plan (500 Anytime Voice Minutes)"]
["F-4",46.69,null,"Carrier 1-Domestic Calling Plan (1200 Anytime Voice Minutes)"]
["F-5",68.78,null,"Carrier 1-Domestic Calling Plan (Unlimited Anytime Voice Minutes)"]
["F-6",0,null,"Carrier 1-Voice Mail (Included)"]
["F-7",0,null,"Carrier 1-Voice Mail (None)"]
["F-8",11.06,null,"Carrier 1-Return to Service (2 business hours)"]
["F-9",7.4,null,"Carrier 1-Return to Service (8 business hours)"]
["F-10",0,null,"Carrier 1-International Calling Plan (Included) "]
["F-11",0,null,"Carrier 1-International Calling Plan (None)"]
["F-12",0,null,"Carrier 1-Camera (Included)"]
["F-13",0,null,"Carrier 1-Camera (None)"]
["F-14",0,"17.9% off of MSRP - OTC","T-Mobile-Carrier 2-Instrument (Product Line)"]
["F-15",0,null,"Carrier 2-Hardware Refresh (None)"]
["F-16",23.77,null,"Carrier 2-Domestic Calling Plan (500 Anytime Voice Minutes)"]
["F-17",36.26,null,"Carrier 2-Domestic Calling Plan (1200 Anytime Voice Minutes)"]
["F-18",68.959999999999994,null,"Carrier 2-Domestic Calling Plan (Unlimited Anytime Voice Minutes)"]
["F-19",0,null,"Carrier 2-Voice Mail (Included)"]
["F-20",0,null,"Carrier 2-Voice Mail (None)"]
["F-21",11.06,null,"Carrier 2-Return to Service (2 business hours)"]
["F-22",7.4,null,"Carrier 2-Return to Service (8 business hours)"]
["F-23",0,null,"Carrier 2-International Calling Plan (Included) "]
["F-24",0,null,"Carrier 2-International Calling Plan (None)"]
["F-25",0,null,"Carrier 2-Camera (Included)"]
["F-26",0,null,"Carrier 2-Camera (None)"]
["F-27",0,"17.9% off of MSRP - OTC","Verizon-Carrier 3-Instrument (Product Line)"]
["F-28",0,null,"Verizon-Carrier 3-Hardware Refresh (None)"]
["F-29",25.94,null,"Verizon-Carrier 3-Domestic Calling Plan (500 Anytime Voice Minutes)"]
["F-30",46.69,null,"Verizon-Carrier 3-Domestic Calling Plan (1200 Anytime Voice Minutes)"]
["F-31",68.78,null,"Verizon-Carrier 3-Domestic Calling Plan (Unlimited Anytime Voice Minutes)"]
["F-32",0,null,"Verizon-Carrier 3-Voice Mail (Included)"]
["F-33",0,null,"Verizon-Carrier 3-Voice Mail (None)"]
["F-34",11.06,null,"Verizon-Carrier 3-Return to Service (2 business hours)"]
["F-35",7.4,null,"Verizon-Carrier 3-Return to Service (8 business hours)"]
["F-36",0,null,"Verizon-Carrier 3-International Calling Plan (Included) "]
["F-37",0,null,"Verizon-Carrier 3-International Calling Plan (None)"]
["F-38",0,null,"Verizon-Carrier 3-Camera (Included)"]
["F-39",0,null,"Verizon-Carrier 3-Camera (None)"]
["G-1",54.86,null," AT&T-Carrier 1-Instrument (RIM-based)"]
["G-2",69.06,null," AT&T-Carrier 1-Instrument (Apple-based)"]
["G-3",45.58,null," T-Mobile-Carrier 2-Instrument (RIM-based)"]
["G-4",62.74,null," T-Mobile-Carrier 2-Instrument (Apple-based)"]
["G-5",57.86,null," Verizon-Carrier 3-Instrument (RIM-based)"]
["G-6",72.06,null," Verizon-Carrier 3-Instrument (Apple-based)"]
["GG-1",6.62,null,"Carrier 1-AT&T-Instrument-Standard (RIM Device) 16GB of Data Storage",null,"\"M\" SmartPhone Seat"]
["GG-2",23.08,null,"Carrier 1-AT&T-Instrument-High End (RIM Device) 32GB of Data Storage",null,"\"M\" SmartPhone Seat"]
["GG-3",23.36,null,"Carrier 1-AT&T-Instrument-Standard (Apple Device) 32GB of Data Storage",null,"\"M\" SmartPhone Seat"]
["GG-4",30.1,null,"Carrier 1-AT&T-Instrument-High End (Apple Device) 64GB of Data Storage",null,"\"M\" SmartPhone Seat"]
["GG-5","Reserved",null,"Carrier 1-AT&T-Instrument-Standard (Other Architecture Device) ",null,"\"M\" SmartPhone Seat"]
["GG-6","Reserved",null,"Carrier 1-AT&T-Instrument-High End (Other Architecture Device) ",null,"\"M\" SmartPhone Seat"]
["GG-7",48.56,null,"Carrier 1-AT&T Domestic Calling Plan (Data Only)",null,"\"M\" SmartPhone Seat"]
["GG-8",48.56,null,"Carrier 1-AT&T Domestic Calling Plan (500 Voice Minutes)",null,"\"M\" SmartPhone Seat"]
["GG-9",53.95,null,"Carrier 1-AT&T Domestic Calling Plan (1200 Voice Minutes)",null,"\"M\" SmartPhone Seat"]
["GG-10",70.14,null,"Carrier 1-AT&T Domestic Calling Plan (Unlimited Voice Minutes)",null,"\"M\" SmartPhone Seat"]
["GG-11",0,null,"Carrier 1-AT&T Voice Mail (Included)",null,"\"M\" SmartPhone Seat"]
["GG-12",0,null,"Carrier 1-AT&T Voice Mail (None)",null,"\"M\" SmartPhone Seat"]
["GG-13",0,null,"Carrier 1-AT&T Return to Service (None)",null,"\"M\" SmartPhone Seat"]
["GG-14",11.06,null,"Carrier 1-AT&T Return to Service (2 Business Hours)",null,"\"M\" SmartPhone Seat"]
["GG-15",7.4,null,"Carrier 1-AT&T Return to Service (8 Business Hours)",null,"\"M\" SmartPhone Seat"]
["GG-16",0,null,"Carrier 1-AT&T International Calling Plan (Enabled)",null,"\"M\" SmartPhone Seat"]
["GG-17",0,null,"Carrier 1-AT&T International Calling Plan (None)",null,"\"M\" SmartPhone Seat"]
["GG-18",0,null,"Carrier 1-AT&T Camera (Included)",null,"\"M\" SmartPhone Seat"]
["GG-19",0,null,"Carrier 1-AT&T Camera (None)",null,"\"M\" SmartPhone Seat"]
["GG-20",0,null,"Carrier 1-AT&T Tethering (None)",null,"\"M\" SmartPhone Seat"]
["GG-21","(Tethering Rates)",null,"Carrier 1-AT&T Tethering (4GB/month w/overage charge of $10 per GB)*",null,"\"M\" SmartPhone Seat"]
["GG-22",0,null,"Carrier 1-AT&T Hotspot (None)",null,"\"M\" SmartPhone Seat"]
["GG-23","TBD",null,"Carrier 1-AT&T Hotspot (RIM Device, Domestic Data Plan)",null,"\"M\" SmartPhone Seat"]
["GG-24","TBD",null,"Carrier 1-AT&T Hotspot (Apple Device, Domestic Data Plan) (4GB/month w/overage charge of $10 per GB)*",null,"\"M\" SmartPhone Seat"]
["GG-25","Reserved",null,"Carrier 1-AT&T Hotspot (Other Architecture device, domestic data plan)",null,"\"M\" SmartPhone Seat"]
["GG-26",6.96,null,"Carrier 2-T-Mobile-Instrument-Standard (RIM Device)",null,"\"M\" SmartPhone Seat"]
["GG-27",22.07,null,"Carrier 2-T-Mobile-Instrument-High End (RIM Device)",null,"\"M\" SmartPhone Seat"]
["GG-28","Reserved",null,"Carrier 2-T-Mobile-Instrument-Standard (Apple Device)",null,"\"M\" SmartPhone Seat"]
["GG-29","Reserved",null,"Carrier 2-T-Mobile-Instrument-High End (Apple Device)",null,"\"M\" SmartPhone Seat"]
["GG-30","Reserved",null,"Carrier 2-T-Mobile-Instrument-Standard (Other Architecture Device)",null,"\"M\" SmartPhone Seat"]
["GG-31","Reserved",null,"Carrier 2-T-Mobile-Instrument-High End (Other Architecture Device)",null,"\"M\" SmartPhone Seat"]
["GG-32",36.590000000000003,null,"Carrier 2-T-Mobile Domestic Calling Plan (Data Only)",null,"\"M\" SmartPhone Seat"]
["GG-33",38.32,null,"Carrier 2-T-Mobile Domestic Calling Plan (500 Voice Minutes)",null,"\"M\" SmartPhone Seat"]
["GG-34",43.49,null,"Carrier 2-T-Mobile Domestic Calling Plan (1200 Voice Minutes)",null,"\"M\" SmartPhone Seat"]
["GG-35",58.99,null,"Carrier 2-T-Mobile Domestic Calling Plan (Unlimited Voice Minutes)",null,"\"M\" SmartPhone Seat"]
["GG-36",0,null,"Carrier 2-T-Mobile Voice Mail (Included)",null,"\"M\" SmartPhone Seat"]
["GG-37",0,null,"Carrier 2-T-Mobile Voice Mail (None)",null,"\"M\" SmartPhone Seat"]
["GG-38",0,null,"Carrier 2-T-Mobile Return to Service (None)",null,"\"M\" SmartPhone Seat"]
["GG-39",11.06,null,"Carrier 2-T-Mobile Return to Service (2 Business Hours)",null,"\"M\" SmartPhone Seat"]
["GG-40",7.4,null,"Carrier 2-T-Mobile Return to Service (8 Business Hours)",null,"\"M\" SmartPhone Seat"]
["GG-41",0,null,"Carrier 2-T-Mobile International Calling Plan (Enabled)",null,"\"M\" SmartPhone Seat"]
["GG-42",0,null,"Carrier 2-T-Mobile International Calling Plan (None)",null,"\"M\" SmartPhone Seat"]
["GG-43",0,null,"Carrier 2-T-Mobile Camera (Included)",null,"\"M\" SmartPhone Seat"]
["GG-44",0,null,"Carrier 2-T-Mobile Camera (None)",null,"\"M\" SmartPhone Seat"]
["GG-45",0,null,"Carrier 2-T-Mobile Tethering (None)**",null,"\"M\" SmartPhone Seat"]
["GG-46",0,null,"Carrier 2-T-Mobile Enabling Tethering (does not inclue data plan)**",null,"\"M\" SmartPhone Seat"]
["GG-47",0,null,"Carrier 2-T-Mobile Hotspot (None)**",null,"\"M\" SmartPhone Seat"]
["GG-48",50.03,null,"Carrier 2-T-Mobile Hotspot (RIM Device, Unlimited Domestic Data Plan)",null,"\"M\" SmartPhone Seat"]
["GG-49","Reserved",null,"Carrier 2-T-Mobile Hotspot (Apple Device, Domestic Data Plan) ",null,"\"M\" SmartPhone Seat"]
["GG-50","Reserved",null,"Carrier 2-T-Mobile Hotspot (Other Architecture device, domestic data plan)",null,"\"M\" SmartPhone Seat"]
["GG-51",7.13,null,"Carrier 3-Verizon-Instrument-Standard (RIM Device) - 16GB of Data Storage",null,"\"M\" SmartPhone Seat"]
["GG-52",24.6,null,"Carrier 3-Verizon-Instrument-High End (RIM Device) - 32GB of Data Storage",null,"\"M\" SmartPhone Seat"]
["GG-53",23.36,null,"Carrier 3-Verizon-Instrument-Standard (Apple Device) - 32GB of Data Storage",null,"\"M\" SmartPhone Seat"]
["GG-54",30.1,null,"Carrier 3-Verizon-Instrument-High End (Apple Device) - 64GB of Data Storage",null,"\"M\" SmartPhone Seat"]
["GG-55","Reserved",null,"Carrier 3-Verizon-Instrument-Standard (Other Architecture Device)",null,"\"M\" SmartPhone Seat"]
["GG-56","Reserved",null,"Carrier 3-Verizon-Instrument-High End (Other Architecture Device)",null,"\"M\" SmartPhone Seat"]
["GG-57",48.56,null,"Carrier 3-Verizon Domestic Calling Plan (Data Only)",null,"\"M\" SmartPhone Seat"]
["GG-58",48.56,null,"Carrier 3-Verizon Domestic Calling Plan (500 Voice Minutes)",null,"\"M\" SmartPhone Seat"]
["GG-59",53.95,null,"Carrier 3-Verizon Domestic Calling Plan (1200 Voice Minutes)",null,"\"M\" SmartPhone Seat"]
["GG-60",70.14,null,"Carrier 3-Verizon Domestic Calling Plan (Unlimited Voice Minutes)",null,"\"M\" SmartPhone Seat"]
["GG-61",0,null,"Carrier 3-Verizon Voice Mail (Included)",null,"\"M\" SmartPhone Seat"]
["GG-62",0,null,"Carrier 3-Verizon Voice Mail (None)",null,"\"M\" SmartPhone Seat"]
["GG-63",0,null,"Carrier 3-Verizon Return to Service (None)",null,"\"M\" SmartPhone Seat"]
["GG-64",11.06,null,"Carrier 3-Verizon Return to Service (2 Business Hours)",null,"\"M\" SmartPhone Seat"]
["GG-65",7.4,null,"Carrier 3-Verizon Return to Service (8 Business Hours)",null,"\"M\" SmartPhone Seat"]
["GG-66",0,null,"Carrier 3-Verizon International Calling Plan (Enabled)",null,"\"M\" SmartPhone Seat"]
["GG-67",0,null,"Carrier 3-Verizon International Calling Plan (None)",null,"\"M\" SmartPhone Seat"]
["GG-68",0,null,"Carrier 3-Verizon Camera (Included)",null,"\"M\" SmartPhone Seat"]
["GG-69",0,null,"Carrier 3-Verizon Camera (None)",null,"\"M\" SmartPhone Seat"]
["GG-70",0,null,"Carrier 3-Verizon Tethering (None)",null,"\"M\" SmartPhone Seat"]
["GG-71",10.4,null,"Carrier 3-Verizon Tethering monthly access charge",null,"\"M\" SmartPhone Seat"]
["GG-72","TBD",null,"Carrier 3-Verizon Hotspot (RIM Device, domestic data plan)",null,"\"M\" SmartPhone Seat"]
["GG-73",10.4,null,"Carrier 3-Verizon Hotspot (Apple Device, monthly access charge)",null,"\"M\" SmartPhone Seat"]
["GG-74",49.91,null,"Carrier 3-Verizon (Unlimited domestic data plan for tethering and/or hotspot) ",null,"\"M\" SmartPhone Seat"]
["GG-75","Reserved",null,"Carrier 3-Verizon Hotspot (Other Architecture device, domestic data plan)",null,"\"M\" SmartPhone Seat"]
["H-1",0,null," AT&T-Carrier 1-Instrument (None)"]
["H-2",0,"17.9% off of MSRP - OTC"," Carrier 1-Instrument (RIM-based)"]
["H-3",0,"0% off of MSRP - OTC"," Carrier 1-Instrument (Apple-based)"]
["H-4",0,"0% off of MSRP - OTC"," Carrier 1-Instrument (Other Architecture)"]
["H-5",null,null,"Carrier 1-Hardware Refresh (None)"]
["H-6",48.56,null,"Carrier 1-Domestic Calling Plan (Data Only) "]
["H-7",48.56,null,"Carrier 1-Domestic Calling Plan (500 Voice Minutes)"]
["H-8",53.95,null,"Carrier 1-Domestic Calling Plan (1200 Voice Minutes)"]
["H-9",70.14,null,"Carrier 1-Domestic Calling Plan (Unlimited Voice Minutes)"]
["H-10",0,null,"Carrier 1-Voice Mail (Included)"]
["H-11",0,null,"Carrier 1-Voice Mail (None)"]
["H-12",0,null,"Carrier 1-Return to Service (None)"]
["H-13",11.06,null,"Carrier 1-Return to Service (2 business hours)"]
["H-14",7.4,null,"Carrier 1-Return to Service (8 business hours)"]
["H-15",0,null,"Carrier 1-International Calling Plan (Included) "]
["H-16",0,null,"Carrier 1-International Calling Plan (None)"]
["H-17",0,null,"Carrier 1-Camera (Included)"]
["H-18",0,null,"Carrier 1-Camera (None)"]
["H-19",0,null,"Carrier 1-Tethering (None) "]
["H-20",5.2,null,"Carrier 1-Tethering (Included)"]
["H-21",0,null," T-Mobile-Carrier 2-Instrument (None)"]
["H-22",0,"17.9% off of MSRP - OTC"," Carrier 2-Instrument (RIM-based)"]
["H-23",0,"0% off of MSRP - OTC"," Carrier 2-Instrument (Apple-based)"]
["H-24",0,"0% off of MSRP - OTC"," Carrier 2-Instrument (Other Architecture)"]
["H-25",0,null,"Carrier 2-Hardware Refresh (None)"]
["H-26",36.590000000000003,null,"Carrier 2-Domestic Calling Plan (Data Only) "]
["H-27",38.32,null,"Carrier 2-Domestic Calling Plan (500 Voice Minutes)"]
["H-28",43.49,null,"Carrier 2-Domestic Calling Plan (1200 Voice Minutes)"]
["H-29",58.99,null,"Carrier 2-Domestic Calling Plan (Unlimited Voice Minutes)"]
["H-30",0,null,"Carrier 2-Voice Mail (Included)"]
["H-31",0,null,"Carrier 2-Voice Mail (None)"]
["H-32",0,null,"Carrier 2-Return to Service (None)"]
["H-33",11.06,null,"Carrier 2-Return to Service (2 business hours)"]
["H-34",7.4,null,"Carrier 2-Return to Service (8 business hours)"]
["H-35",0,null,"Carrier 2-International Calling Plan (Included) "]
["H-36",0,null,"Carrier 2-International Calling Plan (None)"]
["H-37",0,null,"Carrier 2-Camera (Included)"]
["H-38",0,null,"Carrier 2-Camera (None)"]
["H-39",0,null,"Carrier 2-Tethering (None) "]
["H-40",0,null,"Carrier 2-Tethering (Included)"]
["H-41",0,null," Verizon-Carrier 3-Instrument (None)"]
["H-42",0,"17.9% off of MSRP - OTC"," Verizon-Carrier 3-Instrument (RIM-based)"]
["H-43",0,"0% off of MSRP - OTC"," Verizon-Carrier 3-Instrument (Apple-based)"]
["H-44",0,"0% off of MSRP - OTC"," Verizon-Carrier 3-Instrument (Other Architecture)"]
["H-45",0,null,"Verizon-Carrier 3-Hardware Refresh (None)"]
["H-46",51.56,null,"Verizon-Carrier 3-Domestic Calling Plan (Data Only) "]
["H-47",51.56,null,"Verizon-Carrier 3-Domestic Calling Plan (500 Voice Minutes)"]
["H-48",56.95,null,"Verizon-Carrier 3-Domestic Calling Plan (1200 Voice Minutes)"]
["H-49",73.14,null,"Verizon-Carrier 3-Domestic Calling Plan (Unlimited Voice Minutes)"]
["H-50",0,null,"Verizon-Carrier 3-Voice Mail (Included)"]
["H-51",0,null,"Verizon-Carrier 3-Voice Mail (None)"]
["H-52",0,null,"Verizon-Carrier 3-Return to Service (None)"]
["H-53",11.06,null,"Verizon-Carrier 3-Return to Service (2 business hours)"]
["H-54",7.4,null,"Verizon-Carrier 3-Return to Service (8 business hours)"]
["H-55",0,null,"Verizon-Carrier 3-International Calling Plan (Included) "]
["H-56",0,null,"Verizon-Carrier 3-International Calling Plan (None)"]
["H-57",0,null,"Verizon-Carrier 3-Camera (Included)"]
["H-58",0,null,"Verizon-Carrier 3-Camera (None)"]
["H-59",0,null,"Verizon-Carrier 3-Tethering (None) "]
["H-60",10.4,null,"Verizon-Carrier 3-Tethering (Included)"]
["I-1",1.4,null,"Instrument (Numeric)"]
["I-2",2.74,null,"Instrument (Alphanumeric One-Way/Alias)"]
["I-3",5.33,null,"Instrument (Alphanumeric Two-Way/Alias)"]
["I-4",3.31,null,"Service Plan (Local Only)"]
["I-5",4,null,"Service Plan (Statewide)"]
["I-5",4,null,"Service Plan (Statewide) - Vendor 2 (USA Mobility)"]
["I-6",11.8,null,"Service Plan (Nationwide)"]
["I-7",3,null,"Service Plan (800 Number)"]
["I-8",0,null,"Voicemail Notification (None)"]
["I-9",1.5,null,"Voice Mail Notification (Sent to Pager)"]
["I-10",0,null,"Octel Message Notification (None)"]
["I-11",0,null,"Octel Message Notification (Enabled)"]
["I-12",8.02,null,"Return to Service (2 business hours)"]
["I-13",5.14,null,"Return to Service (8 business hours) "]
["I-14",1.4,null,"Instrument (Numeric) - Vendor 2 (USA Mobility)"]
["I-15",2.74,null,"Instrument (Alphanumeric One-Way/Alias) - Vendor 2 (USA Mobility)"]
["I-16",5.33,null,"Instrument (Alphanumeric Two-Way/Alias) - Vendor 2 (USA Mobility)"]
["I-17",3.31,null,"Service Plan (Local Only) - Vendor 2 (USA Mobility)"]
["I-18",4,null,"Service Plan (Statewide) - Vendor 2 (USA Mobility)"]
["I-19",11.8,null,"Service Plan (Nationwide) - Vendor 2 (USA Mobility)"]
["I-20",3,null,"Service Plan (800 Number) - Vendor 2 (USA Mobility)"]
["I-21",0,null,"Voicemail Notification (None) - Vendor 2 (USA Mobility)"]
["I-22",1.5,null,"Voice Mail Notification (Sent to Pager) - Vendor 2 (USA Mobility)"]
["I-23",0,null,"Octel Message Notification (None) - Vendor 2 (USA Mobility)"]
["I-24",0,null,"Octel Message Notification (Enabled) - Vendor 2 (USA Mobility)"]
["I-25",8.02,null,"Return to Service (2 business hours) - Vendor 2 (USA Mobility)"]
["I-26",5.14,null,"Return to Service (8 business hours)  - Vendor 2 (USA Mobility)"]
["S-7",31.13,null,"Wireless Aircard Service (monthly recurring cost) - AT&T Only"]
["S-13",48.71,null,"Verizon Wireless Aircard Service (monthly recurring cost)"]
["S-14",0,null,"Verizon MiFi Device Pricing"]
["S-15",48.71,null,"Verizon MiFi Data Plan Pricing – Unlimited Data"]
["S-16",0,null,"AT&T-Wireless Mobile Hotspot Device Pricing"]
["S-17",69.45,null,"AT&T-Unlimited Domestic Data Plan Service Pricing"]
["S-18",0,null,"T-Mobile-Wireless Mobile Hotspot Device Pricing"]
["S-19",50.03,null,"T-Mobile-Unlimited Domestic Data Plan Service Pricing"]
["SS-1","(International Usage Per Minute Rate by Country)",null,"AT&T-Carrier 1- Smartphone Voice"]
["SS-2",10,null,"AT&T-Carrier 1- Smartphone Data (unlimited)"]
["SS-3","(International txt msg rates)",null,"AT&T-Carrier 1- Smartphone Texting"]
["SS-4",24.99,null,"AT&T-Carrier 1- Other Mobile Device (e.g., iPad) (50 MB)*"]
["SS-5",49.99,null,"AT&T-Carrier 1- Other Mobile Device (e.g., iPad) (125 MB)*"]
["SS-6",99.99,null,"AT&T-Carrier 1- Other Mobile Device (e.g., iPad) (275 MB)*"]
["SS-7",199.99,null,"AT&T-Carrier 1- Other Mobile Device (e.g., iPad) (800 MB)*"]
["SS-8",24.99,null,"AT&T-Carrier 1- Broadband Access (e.g., Aircard/MiFi/Mobile Hotspot) (50 MB)*"]
["SS-9",49.99,null,"AT&T-Carrier 1- Broadband Access (e.g., Aircard/MiFi/Mobile Hotspot) (125 MB)*"]
["SS-10",99.99,null,"AT&T-Carrier 1- Broadband Access (e.g., Aircard/MiFi/Mobile Hotspot) (275 MB)*"]
["SS-11",199.99,null,"AT&T-Carrier 1- Broadband Access (e.g., Aircard/MiFi/Mobile Hotspot) (800 MB)*"]
["SS-12","(International Usage Per Minute Rate by Country)",null,"T-Mobile-Carrier 2- Smartphone Voice"]
["SS-13",16.39,null,"T-Mobile-Carrier 2- Smartphone Data- Unlimited Blackberry**"]
["SS-14","$8.19 + (per MB usage per Country)",null,"T-Mobile-Carrier 2- Smartphone Data- (Unlimited non-Blackberry)**","we don't offer non-blackberry Tmobile smartphones"]
["SS-15","N/A",null,"T-Mobile-Carrier 2- Smartphone Texting (Not Currently Offered)"]
["SS-16","N/A",null,"T-Mobile-Carrier 2- Smartphone Data- (Other Mobile Device; e.g., iPad) (Not Currently Offered)"]
["SS-17","$8.19 + (per MB usage per Country)",null,"T-Mobile-Carrier 2-  Broadband Access (e.g., Aircard/MiFi/Mobile Hotspot)*** "]
["SS-18","(International Usage Per Minute Rate by Country)",null,"Verizon-Carrier 3- Smartphone Voice****"]
["SS-19",16.989999999999998,null,"Verizon-Carrier 3- Smartphone Data (unlimited)"]
["SS-20","(International txt msg rates)",null,"Verizon-Carrier 3- Smartphone Texting"]
["SS-21","$105.29 + (per KB charge per Country)",null,"Verizon-Carrier 3- Smartphone Other Mobile Device (e.g., iPad)****"]
["SS-22","$105.29 + (per KB charge per Country)",null,"Verizon-Carrier 3- Broadband Access (e.g., Aircard/MiFi/Hotspot)****"]
[]
["T-1",54.36,null,"Device – iPad 32GB (Wi-Fi only enabled)"]
["T-2",106.74,null,"AT&T iPad 32 GB (3G enabled) Data Plan Pricing – Unlimited Domestic Data"]
["T-3",106.74,null,"Verizon iPad 32 GB (3G enabled) - Data Plan Pricing – Unlimited Domestic Data"]
["U-1",0,null,"Carrier-Instrument (None)"]
["U-2",37.89,null,"Instrument (Apple-based – iPad 32 GB WiFi only)"]
["U-3",43.77,null,"Instrument (Apple-based – iPad 32 GB WiFi + 3G)"]
["U-4",42.66,null,"Instrument (Apple-based – iPad 64 GB WiFi only)"]
["U-5",48.53,null,"Instrument (Apple-based – iPad 64 GB WiFi  + 3G)"]
["U-6",0,null,"AT&T iPad Data Plan– None (Wi-Fi only enabled)"]
["U-7",0,null,"Verizon iPad Data Plan– None (Wi-Fi only enabled)"]
["U-8",46.5,null,"AT&T iPad Data Plan Pricing – Unlimited Domestic Data for 3G enabled device"]
["U-9",46.5,null,"Verizon iPad Data Plan Pricing – Unlimited Domestic Data for 3G enabled device"]
["U-10",0,null,"Reserved"]
["U-11",0,null,"Reserved"]
["U-12",0,null,"Carrier-Camera (Included)"]
["U-13",0,null,"AT&T-Camera (None)^"]
["U-14",0,null,"Verizon-Camera (None)^"]
["U-15",0,null,"Carrier-Return to Service (None)"]
["U-16",34.18,null,"Return to Service (2 business hours)"]
["U-17",16.47,null,"Return to Service (8 business hours)"]
["U-18",0,null,"Carrier-Tethering (None) "]
["U-19","N/A",null,"AT&T-Tethering **"]
["U-20","N/A",null,"Verizon-Tethering**"]
["U-21","Future Option",null,"Thin Client Image Option#"]

{"sheet":"BASE CLIN","index":7,"n_rows":135,"n_cols":6,"rows_kept":135,"cut":false,"hidden":true,"merged":[]}
["Base CLINS","CLIN Mapping"]
[]
["Seat_ID","Seat_Type","Carrier","Line Item","CLIN_Code","Base_CLIN"]
["S","Cell Phone","AT&T",null,{"$f":"CONCATENATE(A4,\"_\",B4,\"_\",C4)","v":"S_Cell Phone_AT&T"},"E-1"]
["S","Cell Phone","T-Mobile",null,{"$f":"CONCATENATE(A5,\"_\",B5,\"_\",C5)","v":"S_Cell Phone_T-Mobile"},"E-2"]
["S","Cell Phone","Verizon",null,"S_Cell Phone_Verizon","E-3"]
["S","Cell Phone (Push to Talk)","Verizon",null,"S_Cell Phone (Push to Talk)_Verizon","E-4"]
["S","Smart Phone (RIM)","AT&T",null,"S_Smart Phone (RIM)_AT&T","G-1"]
["S","Smart Phone (RIM)","T-Mobile",null,"S_Smart Phone (RIM)_T-Mobile","G-3"]
["S","Smart Phone (RIM)","Verizon",null,"S_Smart Phone (RIM)_Verizon","G-5"]
["S","Smart Phone (Apple)","AT&T",null,"S_Smart Phone (Apple)_AT&T","G-2"]
["S","Smart Phone (Apple)","T-Mobile",null,"S_Smart Phone (Apple)_T-Mobile","G-4"]
["S","Smart Phone (Apple)","Verizon",null,"S_Smart Phone (Apple)_Verizon","G-6"]
["iPad_S","iPad (WiFi only)","AT&T",null,{"$f":"CONCATENATE(A14,\"_\",B14,\"_\",C14)","v":"iPad_S_iPad (WiFi only)_AT&T"},"T-1"]
["iPad_S","iPad (WiFi only)","Verizon",null,"iPad_S_iPad (WiFi only)_Verizon","T-1"]
["iPad_S","iPad (3G Data Plan)","AT&T",null,"iPad_S_iPad (3G Data Plan)_AT&T","T-2"]
["iPad_S","iPad (3G Data Plan)","Verizon",null,"iPad_S_iPad (3G Data Plan)_Verizon","T-3"]
["iPad_M","iPad (WiFi only)","AT&T",null,"iPad_M_iPad (WiFi only)_AT&T","U-6"]
["iPad_M","iPad (WiFi only)","Verizon",null,"iPad_M_iPad (WiFi only)_Verizon","U-7"]
["iPad_M","iPad (3G Data Plan)","AT&T",null,"iPad_M_iPad (3G Data Plan)_AT&T","U-8"]
["iPad_M","iPad (3G Data Plan)","Verizon",null,"iPad_M_iPad (3G Data Plan)_Verizon","U-9"]
["GO_Service_Only","iPad (WiFi only)","AT&T",null,{"$f":"CONCATENATE(A22,\"_\",B22,\"_\",C22)","v":"GO_Service_Only_iPad (WiFi only)_AT&T"},"U-6"]
["GO_Service_Only","iPad (WiFi only)","Verizon",null,"GO_Service_Only_iPad (WiFi only)_Verizon","U-7"]
["GO_Service_Only","iPad (3G Data Plan)","AT&T",null,"GO_Service_Only_iPad (3G Data Plan)_AT&T","U-8"]
["GO_Service_Only","iPad (3G Data Plan)","Verizon",null,"GO_Service_Only_iPad (3G Data Plan)_Verizon","U-9"]
["Pager","Numeric","American Messaging","Local Only",{"$f":"CONCATENATE(A26,\"_\",B26,\"_\",C26,\"_\",D26)","v":"Pager_Numeric_American Messaging_Local Only"},"I-4"]
["Pager","Numeric","American Messaging","Statewide",{"$f":"CONCATENATE(A27,\"_\",B27,\"_\",C27,\"_\",D27)","v":"Pager_Numeric_American Messaging_Statewide"},"I-5"]
["Pager","Numeric","American Messaging","Nationwide","Pager_Numeric_American Messaging_Nationwide","I-6"]
["Pager","Numeric","American Messaging","800 Number","Pager_Numeric_American Messaging_800 Number","I-7"]
["Pager","Alphanumeric One-way","American Messaging","Local Only",{"$f":"CONCATENATE(A30,\"_\",B30,\"_\",C30,\"_\",D30)","v":"Pager_Alphanumeric One-way_American Messaging_Local Only"},"I-4"]
["Pager","Alphanumeric One-way","American Messaging","Statewide",{"$f":"CONCATENATE(A31,\"_\",B31,\"_\",C31,\"_\",D31)","v":"Pager_Alphanumeric One-way_American Messaging_Statewide"},"I-5"]
["Pager","Alphanumeric One-way","American Messaging","Nationwide","Pager_Alphanumeric One-way_American Messaging_Nationwide","I-6"]
["Pager","Alphanumeric One-way","American Messaging","800 Number","Pager_Alphanumeric One-way_American Messaging_800 Number","I-7"]
["Pager","Alphanumeric Two-way","American Messaging","Local Only",{"$f":"CONCATENATE(A34,\"_\",B34,\"_\",C34,\"_\",D34)","v":"Pager_Alphanumeric Two-way_American Messaging_Local Only"},"I-4"]
["Pager","Alphanumeric Two-way","American Messaging","Statewide",{"$f":"CONCATENATE(A35,\"_\",B35,\"_\",C35,\"_\",D35)","v":"Pager_Alphanumeric Two-way_American Messaging_Statewide"},"I-5"]
["Pager","Alphanumeric Two-way","American Messaging","Nationwide","Pager_Alphanumeric Two-way_American Messaging_Nationwide","I-6"]
["Pager","Alphanumeric Two-way","American Messaging","800 Number","Pager_Alphanumeric Two-way_American Messaging_800 Number","I-7"]
["Pager","Numeric","USA Mobility","Local Only",{"$f":"CONCATENATE(A38,\"_\",B38,\"_\",C38,\"_\",D38)","v":"Pager_Numeric_USA Mobility_Local Only"},"I-17"]
["Pager","Numeric","USA Mobility","Statewide","Pager_Numeric_USA Mobility_Statewide","I-18"]
["Pager","Numeric","USA Mobility","Nationwide","Pager_Numeric_USA Mobility_Nationwide","I-19"]
["Pager","Numeric","USA Mobility","800 Number","Pager_Numeric_USA Mobility_800 Number","I-20"]
["Pager","Alphanumeric One-way","USA Mobility","Local Only","Pager_Alphanumeric One-way_USA Mobility_Local Only","I-17"]
["Pager","Alphanumeric One-way","USA Mobility","Statewide","Pager_Alphanumeric One-way_USA Mobility_Statewide","I-18"]
["Pager","Alphanumeric One-way","USA Mobility","Nationwide","Pager_Alphanumeric One-way_USA Mobility_Nationwide","I-19"]
["Pager","Alphanumeric One-way","USA Mobility","800 Number","Pager_Alphanumeric One-way_USA Mobility_800 Number","I-20"]
["Pager","Alphanumeric Two-way","USA Mobility","Local Only","Pager_Alphanumeric Two-way_USA Mobility_Local Only","I-17"]
["Pager","Alphanumeric Two-way","USA Mobility","Statewide","Pager_Alphanumeric Two-way_USA Mobility_Statewide","I-18"]
["Pager","Alphanumeric Two-way","USA Mobility","Nationwide","Pager_Alphanumeric Two-way_USA Mobility_Nationwide","I-19"]
["Pager","Alphanumeric Two-way","USA Mobility","800 Number","Pager_Alphanumeric Two-way_USA Mobility_800 Number","I-20"]
["B","Cell Phone","AT&T","500 Minutes","B_Cell Phone_AT&T_500 Minutes","F-3"]
["B","Cell Phone","AT&T","1200 Minutes","B_Cell Phone_AT&T_1200 Minutes","F-4"]
["B","Cell Phone","AT&T","Unlimited","B_Cell Phone_AT&T_Unlimited","F-5"]
["B","Cell Phone","T-Mobile","500 Minutes","B_Cell Phone_T-Mobile_500 Minutes","F-16"]
["B","Cell Phone","T-Mobile","1200 Minutes","B_Cell Phone_T-Mobile_1200 Minutes","F-17"]
["B","Cell Phone","T-Mobile","Unlimited","B_Cell Phone_T-Mobile_Unlimited","F-18"]
["B","Cell Phone","Verizon","500 Minutes","B_Cell Phone_Verizon_500 Minutes","F-29"]
["B","Cell Phone","Verizon","1200 Minutes","B_Cell Phone_Verizon_1200 Minutes","F-30"]
["B","Cell Phone","Verizon","Unlimited","B_Cell Phone_Verizon_Unlimited","F-31"]
["B","Cell Phone - No HW","AT&T","500 Minutes",{"$f":"CONCATENATE(A59,\"_\",B59,\"_\",C59,\"_\",D59)","v":"B_Cell Phone - No HW_AT&T_500 Minutes"},"F-3"]
["B","Cell Phone - No HW","AT&T","1200 Minutes","B_Cell Phone - No HW_AT&T_1200 Minutes","F-4"]
["B","Cell Phone - No HW","AT&T","Unlimited","B_Cell Phone - No HW_AT&T_Unlimited","F-5"]
["B","Cell Phone - No HW","T-Mobile","500 Minutes","B_Cell Phone - No HW_T-Mobile_500 Minutes","F-16"]
["B","Cell Phone - No HW","T-Mobile","1200 Minutes","B_Cell Phone - No HW_T-Mobile_1200 Minutes","F-17"]
["B","Cell Phone - No HW","T-Mobile","Unlimited","B_Cell Phone - No HW_T-Mobile_Unlimited","F-18"]
["B","Cell Phone - No HW","Verizon","500 Minutes","B_Cell Phone - No HW_Verizon_500 Minutes","F-29"]
["B","Cell Phone - No HW","Verizon","1200 Minutes","B_Cell Phone - No HW_Verizon_1200 Minutes","F-30"]
["B","Cell Phone - No HW","Verizon","Unlimited","B_Cell Phone - No HW_Verizon_Unlimited","F-31"]
["B","Smart Phone (RIM)","AT&T","Data Only",{"$f":"CONCATENATE(A68,\"_\",B68,\"_\",C68,\"_\",D68)","v":"B_Smart Phone (RIM)_AT&T_Data Only"},"H-6"]
["B","Smart Phone (RIM)","AT&T","500 Minutes","B_Smart Phone (RIM)_AT&T_500 Minutes","H-7"]
["B","Smart Phone (RIM)","AT&T","1200 Minutes","B_Smart Phone (RIM)_AT&T_1200 Minutes","H-8"]
["B","Smart Phone (RIM)","AT&T","Unlimited","B_Smart Phone (RIM)_AT&T_Unlimited","H-9"]
["B","Smart Phone (RIM)","T-Mobile","Data Only",{"$f":"CONCATENATE(A72,\"_\",B72,\"_\",C72,\"_\",D72)","v":"B_Smart Phone (RIM)_T-Mobile_Data Only"},"H-26"]
["B","Smart Phone (RIM)","T-Mobile","500 Minutes","B_Smart Phone (RIM)_T-Mobile_500 Minutes","H-27"]
["B","Smart Phone (RIM)","T-Mobile","1200 Minutes","B_Smart Phone (RIM)_T-Mobile_1200 Minutes","H-28"]
["B","Smart Phone (RIM)","T-Mobile","Unlimited","B_Smart Phone (RIM)_T-Mobile_Unlimited","H-29"]
["B","Smart Phone (RIM)","Verizon","Data Only",{"$f":"CONCATENATE(A76,\"_\",B76,\"_\",C76,\"_\",D76)","v":"B_Smart Phone (RIM)_Verizon_Data Only"},"H-46"]
["B","Smart Phone (RIM)","Verizon","500 Minutes","B_Smart Phone (RIM)_Verizon_500 Minutes","H-47"]
["B","Smart Phone (RIM)","Verizon","1200 Minutes","B_Smart Phone (RIM)_Verizon_1200 Minutes","H-48"]
["B","Smart Phone (RIM)","Verizon","Unlimited","B_Smart Phone (RIM)_Verizon_Unlimited","H-49"]
["B","Smart Phone (Apple)","AT&T","Data Only",{"$f":"CONCATENATE(A80,\"_\",B80,\"_\",C80,\"_\",D80)","v":"B_Smart Phone (Apple)_AT&T_Data Only"},"H-6"]
["B","Smart Phone (Apple)","AT&T","500 Minutes","B_Smart Phone (Apple)_AT&T_500 Minutes","H-7"]
["B","Smart Phone (Apple)","AT&T","1200 Minutes","B_Smart Phone (Apple)_AT&T_1200 Minutes","H-8"]
["B","Smart Phone (Apple)","AT&T","Unlimited","B_Smart Phone (Apple)_AT&T_Unlimited","H-9"]
["B","Smart Phone (Apple)","Verizon","Data Only",{"$f":"CONCATENATE(A84,\"_\",B84,\"_\",C84,\"_\",D84)","v":"B_Smart Phone (Apple)_Verizon_Data Only"},"H-46"]
["B","Smart Phone (Apple)","Verizon","500 Minutes","B_Smart Phone (Apple)_Verizon_500 Minutes","H-47"]
["B","Smart Phone (Apple)","Verizon","1200 Minutes","B_Smart Phone (Apple)_Verizon_1200 Minutes","H-48"]
["B","Smart Phone (Apple)","Verizon","Unlimited","B_Smart Phone (Apple)_Verizon_Unlimited","H-49"]
["B","Smart Phone - No HW","AT&T","Data Only",{"$f":"CONCATENATE(A88,\"_\",B88,\"_\",C88,\"_\",D88)","v":"B_Smart Phone - No HW_AT&T_Data Only"},"H-6"]
["B","Smart Phone - No HW","AT&T","500 Minutes","B_Smart Phone - No HW_AT&T_500 Minutes","H-7"]
["B","Smart Phone - No HW","AT&T","1200 Minutes","B_Smart Phone - No HW_AT&T_1200 Minutes","H-8"]
["B","Smart Phone - No HW","AT&T","Unlimited","B_Smart Phone - No HW_AT&T_Unlimited","H-9"]
["B","Smart Phone - No HW","T-Mobile","Data Only",{"$f":"CONCATENATE(A92,\"_\",B92,\"_\",C92,\"_\",D92)","v":"B_Smart Phone - No HW_T-Mobile_Data Only"},"H-26"]
["B","Smart Phone - No HW","T-Mobile","500 Minutes","B_Smart Phone - No HW_T-Mobile_500 Minutes","H-27"]
["B","Smart Phone - No HW","T-Mobile","1200 Minutes","B_Smart Phone - No HW_T-Mobile_1200 Minutes","H-28"]
["B","Smart Phone - No HW","T-Mobile","Unlimited","B_Smart Phone - No HW_T-Mobile_Unlimited","H-29"]
["B","Smart Phone - No HW","Verizon","Data Only",{"$f":"CONCATENATE(A96,\"_\",B96,\"_\",C96,\"_\",D96)","v":"B_Smart Phone - No HW_Verizon_Data Only"},"H-46"]
["B","Smart Phone - No HW","Verizon","500 Minutes","B_Smart Phone - No HW_Verizon_500 Minutes","H-47"]
["B","Smart Phone - No HW","Verizon","1200 Minutes","B_Smart Phone - No HW_Verizon_1200 Minutes","H-48"]
["B","Smart Phone - No HW","Verizon","Unlimited","B_Smart Phone - No HW_Verizon_Unlimited","H-49"]
["M","Smart Phone (RIM)","AT&T","Data Only",{"$f":"CONCATENATE(A100,\"_\",B100,\"_\",C100,\"_\",D100)","v":"M_Smart Phone (RIM)_AT&T_Data Only"},"GG-7"]
["M","Smart Phone (RIM)","AT&T","500 Minutes",{"$f":"CONCATENATE(A101,\"_\",B101,\"_\",C101,\"_\",D101)","v":"M_Smart Phone (RIM)_AT&T_500 Minutes"},"GG-8"]
["M","Smart Phone (RIM)","AT&T","1200 Minutes","M_Smart Phone (RIM)_AT&T_1200 Minutes","GG-9"]
["M","Smart Phone (RIM)","AT&T","Unlimited","M_Smart Phone (RIM)_AT&T_Unlimited","GG-10"]
["M","Smart Phone (RIM)","T-Mobile","Data Only",{"$f":"CONCATENATE(A104,\"_\",B104,\"_\",C104,\"_\",D104)","v":"M_Smart Phone (RIM)_T-Mobile_Data Only"},"GG-32"]
["M","Smart Phone (RIM)","T-Mobile","500 Minutes",{"$f":"CONCATENATE(A105,\"_\",B105,\"_\",C105,\"_\",D105)","v":"M_Smart Phone (RIM)_T-Mobile_500 Minutes"},"GG-33"]
["M","Smart Phone (RIM)","T-Mobile","1200 Minutes","M_Smart Phone (RIM)_T-Mobile_1200 Minutes","GG-34"]
["M","Smart Phone (RIM)","T-Mobile","Unlimited","M_Smart Phone (RIM)_T-Mobile_Unlimited","GG-35"]
["M","Smart Phone (RIM)","Verizon","Data Only",{"$f":"CONCATENATE(A108,\"_\",B108,\"_\",C108,\"_\",D108)","v":"M_Smart Phone (RIM)_Verizon_Data Only"},"GG-57"]
["M","Smart Phone (RIM)","Verizon","500 Minutes",{"$f":"CONCATENATE(A109,\"_\",B109,\"_\",C109,\"_\",D109)","v":"M_Smart Phone (RIM)_Verizon_500 Minutes"},"GG-58"]
["M","Smart Phone (RIM)","Verizon","1200 Minutes","M_Smart Phone (RIM)_Verizon_1200 Minutes","GG-59"]
["M","Smart Phone (RIM)","Verizon","Unlimited","M_Smart Phone (RIM)_Verizon_Unlimited","GG-60"]
["M","Smart Phone (Apple)","AT&T","Data Only",{"$f":"CONCATENATE(A112,\"_\",B112,\"_\",C112,\"_\",D112)","v":"M_Smart Phone (Apple)_AT&T_Data Only"},"GG-7"]
["M","Smart Phone (Apple)","AT&T","500 Minutes",{"$f":"CONCATENATE(A113,\"_\",B113,\"_\",C113,\"_\",D113)","v":"M_Smart Phone (Apple)_AT&T_500 Minutes"},"GG-8"]
["M","Smart Phone (Apple)","AT&T","1200 Minutes","M_Smart Phone (Apple)_AT&T_1200 Minutes","GG-9"]
["M","Smart Phone (Apple)","AT&T","Unlimited","M_Smart Phone (Apple)_AT&T_Unlimited","GG-10"]
["M","Smart Phone (Apple)","T-Mobile","Data Only",{"$f":"CONCATENATE(A116,\"_\",B116,\"_\",C116,\"_\",D116)","v":"M_Smart Phone (Apple)_T-Mobile_Data Only"},"GG-32"]
["M","Smart Phone (Apple)","T-Mobile","500 Minutes",{"$f":"CONCATENATE(A117,\"_\",B117,\"_\",C117,\"_\",D117)","v":"M_Smart Phone (Apple)_T-Mobile_500 Minutes"},"GG-33"]
["M","Smart Phone (Apple)","T-Mobile","1200 Minutes","M_Smart Phone (Apple)_T-Mobile_1200 Minutes","GG-34"]
["M","Smart Phone (Apple)","T-Mobile","Unlimited","M_Smart Phone (Apple)_T-Mobile_Unlimited","GG-35"]
["M","Smart Phone (Apple)","Verizon","Data Only",{"$f":"CONCATENATE(A120,\"_\",B120,\"_\",C120,\"_\",D120)","v":"M_Smart Phone (Apple)_Verizon_Data Only"},"GG-57"]
["M","Smart Phone (Apple)","Verizon","500 Minutes",{"$f":"CONCATENATE(A121,\"_\",B121,\"_\",C121,\"_\",D121)","v":"M_Smart Phone (Apple)_Verizon_500 Minutes"},"GG-58"]
["M","Smart Phone (Apple)","Verizon","1200 Minutes","M_Smart Phone (Apple)_Verizon_1200 Minutes","GG-59"]
["M","Smart Phone (Apple)","Verizon","Unlimited","M_Smart Phone (Apple)_Verizon_Unlimited","GG-60"]
["M","Smart Phone - No HW","AT&T","Data Only",{"$f":"CONCATENATE(A124,\"_\",B124,\"_\",C124,\"_\",D124)","v":"M_Smart Phone - No HW_AT&T_Data Only"},"GG-7"]
["M","Smart Phone - No HW","AT&T","500 Minutes",{"$f":"CONCATENATE(A125,\"_\",B125,\"_\",C125,\"_\",D125)","v":"M_Smart Phone - No HW_AT&T_500 Minutes"},"GG-8"]
["M","Smart Phone - No HW","AT&T","1200 Minutes","M_Smart Phone - No HW_AT&T_1200 Minutes","GG-9"]
["M","Smart Phone - No HW","AT&T","Unlimited","M_Smart Phone - No HW_AT&T_Unlimited","GG-10"]
["M","Smart Phone - No HW","T-Mobile","Data Only",{"$f":"CONCATENATE(A128,\"_\",B128,\"_\",C128,\"_\",D128)","v":"M_Smart Phone - No HW_T-Mobile_Data Only"},"GG-32"]
["M","Smart Phone - No HW","T-Mobile","500 Minutes",{"$f":"CONCATENATE(A129,\"_\",B129,\"_\",C129,\"_\",D129)","v":"M_Smart Phone - No HW_T-Mobile_500 Minutes"},"GG-33"]
["M","Smart Phone - No HW","T-Mobile","1200 Minutes","M_Smart Phone - No HW_T-Mobile_1200 Minutes","GG-34"]
["M","Smart Phone - No HW","T-Mobile","Unlimited","M_Smart Phone - No HW_T-Mobile_Unlimited","GG-35"]
["M","Smart Phone - No HW","Verizon","Data Only",{"$f":"CONCATENATE(A132,\"_\",B132,\"_\",C132,\"_\",D132)","v":"M_Smart Phone - No HW_Verizon_Data Only"},"GG-57"]
["M","Smart Phone - No HW","Verizon","500 Minutes",{"$f":"CONCATENATE(A133,\"_\",B133,\"_\",C133,\"_\",D133)","v":"M_Smart Phone - No HW_Verizon_500 Minutes"},"GG-58"]
["M","Smart Phone - No HW","Verizon","1200 Minutes","M_Smart Phone - No HW_Verizon_1200 Minutes","GG-59"]
["M","Smart Phone - No HW","Verizon","Unlimited","M_Smart Phone - No HW_Verizon_Unlimited","GG-60"]

{"sheet":"AS-IS Data","index":8,"n_rows":5,"n_cols":15,"rows_kept":5,"cut":false,"hidden":true,"merged":[]}
[]
["ID: ","AIS"]
[]
[]
["Existing Mobile Line Number","Existing Asset Type","Existing Asset Tag","Existing Model","Existing Make","Existing Carrier","Eligibility Date","Existing Seat Assignment First Name","Existing Seat Assignment Last Name","Existing Seat Organization","Existing Seat Building","Existing Seat Room","Existing Additional Phone Number","Existing AUID","Existing UUPIC"]

{"sheet":"Categories","index":9,"n_rows":194,"n_cols":22,"rows_kept":194,"cut":false,"hidden":true,"merged":[]}
["Seat Identifier","Seat Model Types","Docking Station Indicator",null,null,"Monitor Upgrade",null,"Docking Station ","DockCLin_Wintel","DockClin_Apple","Seat OS","Platform_CODE",null,null,null,"RTS",null,"Virtual Machine ",null,"Virtual Machine OS","Backup Services","CLIN "]
["S","Wintel Desktop","DDOCK","_OS2",null,"Standard","B-5","N/A",null,null,null,null,null,null,null,8,null,"None",null,null,"Yes"]
[null,"Wintel Laptop","LDOCK","_OS2",null,"No","B-6","Yes"]
[null,"Apple Desktop","DDOCK","_OS4"]
[null,"Apple Laptop","LDOCK","_OS4"]
[null,null,null,null,null,null,null,null,null,null,null,null,"OS Clin"]
["T","Thin Client Desktop","DDOCK","_OS5",null,"Standard","P-5","N/A",null,null,"N/A","Microsoft","P-3",null,null,8,null,"Remote",null,null,"N/A"]
[null,"Thin Client Laptop","LDOCK","_OS5",null,"No","P-6"]
[]
[null,null,"CLIN","Capacity Tray","Hole Punch","Capacity Tray","Tray B&W Floor CLIN","Tray Color Floor CLIN","RTS","RTS column Lookup value for MFD_RTS_CLIN",null,"RTS = 2 CLINs","RTS = 4 CLIN"]
["MFD","Infrastructure B&W Network Printer Seat","J-1","Tray_N","HP_N","Standard","L-6","N-6",2,2,"Infrastructure B&W Network Printer Seat","J-3","J-4"]
[null,"Infrastructure Color Network Printer Seat","J-2","Tray_N","HP_N","Large","L-7","N-7",4,3,"Infrastructure Color Network Printer Seat","J-3","J-4"]
[null,"MFD B&W Desktop Seat","K-1","Tray_N","HP_N","N/A",null,null,null,null,"MFD B&W Desktop Seat","K-2","K-3"]
[null,"MFD Color Desktop Seat","M-1","Tray_N","HP_N",null,null,null,null,null,"MFD Color Desktop Seat","M-2","M-3"]
[null,"MFD B&W Floor Seat Volume Band 1","L-1","Tray_Y","HP_Y",null,null,null,null,null,"MFD B&W Floor Seat Volume Band 1","L-4","L-5"]
[null,"MFD B&W Floor Seat Volume Band 2","L-2","Tray_Y","HP_Y","HolePunch","Tray B&W Floor CLIN","Tray Color Floor CLIN",null,null,"MFD B&W Floor Seat Volume Band 2","L-4","L-5"]
[null,"MFD B&W Floor Seat Volume Band 3","L-3","Tray_Y","HP_Y","None","L-8","N-8",null,null,"MFD B&W Floor Seat Volume Band 3","L-4","L-5"]
[null,"MFD Color Floor Seat Volume Band 1","N-1","Tray_Y","HP_Y","2-Hole/3-Hole Punch","L-9","N-9",null,null,"MFD Color Floor Seat Volume Band 1","N-4","N-5"]
[null,"MFD Color Floor Seat Volume Band 2","N-2","Tray_Y","HP_Y","N/A",null,null,null,null,"MFD Color Floor Seat Volume Band 2","N-4","N-5"]
[null,"MFD Color Floor Seat Volume Band 3","N-3","Tray_Y","HP_Y",null,null,null,null,null,"MFD Color Floor Seat Volume Band 3","N-4","N-5"]
[]
[]
[null,null,null,{"$f":"INDIRECT(CONCATENATE(Q6,\"_\",VLOOKUP(R6,MFD_Lookup,3,FALSE)))","v":{"$error":"#NAME?"}}]
[null,null,null,{"$f":"INDIRECT(CONCATENATE(Q7,\"_\",VLOOKUP(R7,MFD_Lookup,3,FALSE)))","v":{"$error":"#NAME?"}}]
[]
[null,null,null,null,null,null,null,null,null,null,null,null,"StandardLoadClin","SysAdminCLIN"]
[null,null,null,null,null,null,null,null,null,null,"Unix","Unix","C-23","C-35"]
["M","Wintel Desktop","DDOCK","_OS1",null,"No","C-13","Yes","C-25","C-27","Windows 7 Enterprise 64","Microsoft","C-20","C-32",null,2,"C-17","Local","C-29","Windows 7 Enterprise 64","Yes","C-37"]
[null,"Wintel Laptop","LDOCK","_OS1",null,"Standard","C-14","No","C-26","C-28","Windows 7 Enterprise 32","Microsoft","C-20","C-32",null,8,"C-18","Remote","C-30","Windows 7 Enterprise 32 ","No","C-36"]
[null,"Wintel Lightweight Laptop","LDOCK","_OS2",null,"+10%","C-15","N/A",null,null,"RedHat Linux","Linux","C-22","C-34",null,"None","C-19","None","C-31","XP Professional 64"]
[null,"Wintel Workstation","DDOCK","_OS3",null,"+20%","C-16",null,null,null,"Ubuntu Linux","Linux","C-22","C-34",null,null,null,null,null,"XP Professional 32"]
[null,"Wintel Tablet","LDOCK","_OS2",null,null,null,null,null,null,"Mac OSX","Apple","C-21","C-33"]
[null,"Apple Desktop","DDOCK","_OS4"]
[null,"Apple Laptop","LDOCK","_OS4"]
[null,"Apple Lightweight Laptop","LDOCK","_OS4"]
[null,"Apple Workstation","DDOCK","_OS4"]
[]
[]
[]
[null,null,null,null,null,null,null,null,null,null,null,null,"OSCLIN","StandardLoadClin","SysAdminClin"]
["B","Wintel Ultra Lightweight Laptop","LDOCK","_OS2","_SL2","No","D-12","Yes","D-29","D-31","Unix","Unix","D-11","D-27","D-23",2,"D-16","Local","D-33",null,"Yes","D-37"]
[null,"Apple Ultra Lightweight Laptop","LDOCK","_OS4","_SL7","Standard","D-13","No","D-30","D-32","Windows 7 Enterprise 64","Microsoft","D-8","D-24","D-20",8,"D-17","Remote","D-34",null,"No","D-36"]
[null,"Custom - Microsoft Compatible","LDOCK","_OS6","_SL6","+10%","D-14","N/A",null,null,"Windows 7 Enterprise 32","Microsoft","D-8","D-24","D-20","None","D-18","None","D-35"]
[null,"Custom - Apple Compatible","LDOCK","_OS7","_SL7","+20%","D-15",null,null,null,"RedHat Linux","Linux","D-10","D-26","D-22"]
[null,"Custom - Unix Compatible","DDOCK","_OS8","_SL8",null,null,null,null,null,"Ubuntu Linux","Linux","D-10","D-26","D-22"]
[null,null,null,null,null,null,null,null,null,null,"Mac OSX","Apple","D-9","D-25","D-21"]
[null,null,null,null,null,null,null,null,null,null,"None","None","D-7","D-28","D-19"]
[]
[null,"Payment"]
[null,"B - Amortized","B_AM"]
[null,"B - Lump_Sum","B_LS"]
[]
[null,"B - No HW - Computing Seats","B_CS","D-38***"]
[null,"B - No HW - Network Printer","B_NP","D-39***"]
[null,"B - No HW - Mobile Seats","B_MS","D-40***"]
[null,null,null,null,null,null,{"$f":"INDIRECT(INDEX(INDIRECT(CONCATENATE(LEFT(S5,1),\"_OS\")),MATCH(T5,INDIRECT(RIGHT(S5,LEN(S5)-4)),0),3))","v":{"$error":"#REF!"}}]
[null,"RTS - GFE seats","GFE RTS CLIN",null,null,null,{"$f":"INDIRECT(INDEX(INDIRECT(CONCATENATE(VLOOKUP(B50,B_PAYMENT_Lookup,2,FALSE),\"_OS\")),MATCH(T6,INDIRECT(RIGHT(S6,LEN(S6)-4)),0),3))","v":{"$error":"#NAME?"}}]
[null,2,"D-16",null,null,{"$f":"INDEX(B_PAYMENT_Lookup,MATCH(B50,B_PAYMENT,0),2)","v":{"$error":"#NAME?"}},{"$f":"INDIRECT(INDEX(INDIRECT(CONCATENATE(INDEX(B_PAYMENT_Lookup,MATCH(B50,B_PAYMENT,0),2),\"_OS\")),MATCH(B43,INDIRECT(RIGHT(B50,LEN(B50)-4)),0),3))","v":{"$error":"#NAME?"}},null,null,"_OS1","Wintel Desktop, Wintel Laptop","Windows 7 Enterprise 32"]
[null,8,"D-17",null,null,null,{"$f":"INDIRECT(INDEX(INDIRECT(CONCATENATE(INDEX(B_PAYMENT,MATCH(S6,B_PAYMENT,0),1),\"_OS\")),MATCH(T6,INDIRECT(RIGHT(S6,LEN(S6)-4)),0),3))","v":{"$error":"#NAME?"}},null,null,null,null,"*Windows 7 Enterprise 64"]
[null,"None","D-18",null,null,{"$f":"INDIRECT(CONCATENATE(LEFT(S6,1),\"_\",VLOOKUP(T6,INDIRECT(CONCATENATE(LEFT(S6,1),\"_\",\"DockLookup\")),2,FALSE)))","v":{"$error":"#REF!"}},{"$f":"INDIRECT(INDEX(INDIRECT(CONCATENATE(INDEX(B_PAYMENT,MATCH(B50,B_PAYMENT,0),1),\"_OS\")),MATCH(B43,INDIRECT(RIGHT(B50,LEN(B50)-4)),0),3))","v":{"$error":"#NAME?"}},null,null,null,null,"RedHat Linux"]
[null,null,null,null,null,{"$f":"INDIRECT(VLOOKUP(B50,B_PAYMENT_Lookup,2,FALSE),\"_OS\")","v":{"$error":"#NAME?"}},{"$f":"IF(R7 = \"Apple Desktop\",INDIRECT(\"APPLE_MON\"),INDIRECT(CONCATENATE(Q7,\"_MON\")))","v":{"$error":"#REF!"}},null,null,"_OS2","Wintel LW Laptop, Wintel Tablet, Wintel Ultra LW ","Windows 7 Enterprise 32"]
["S","VTS","O-1",null,null,null,{"$f":"VLOOKUP(B50,B_PAYMENT_Lookup,2,FALSE)","v":{"$error":"#NAME?"}},null,null,null,null,"*Windows 7 Enterprise 64"]
["M",null,null,null,null,{"$f":"INDIRECT(INDEX(INDIRECT(CONCATENATE(VLOOKUP(R6,B_PAYMENT_Lookup,2,FALSE),\"_OS\")),MATCH(S6,INDIRECT(RIGHT(R6,LEN(R6)-4)),0),4))","v":{"$error":"#NAME?"}},{"$f":"IF(UPPER(R6)=\"SMART PHONE (APPLE)\",INDIRECT(CONCATENATE(Q6,\"_CarrierA\")),INDIRECT(CONCATENATE(Q6,\"_Carrier\")))","v":{"$error":"#REF!"}},null,null,"_OS3","Wintel Workstation","Windows 7 Enterprise 32"]
["T",null,null,null,null,{"$f":"INDIRECT(CONCATENATE(RIGHT(S6,LEN(S6)-4),\"_ST\"))","v":{"$error":"#VALUE!"}},{"$f":"IF(UPPER(R6)=\"SMART PHONE (APPLE)\",INDIRECT(CONCATENATE(Q6,\"_CarrierA\")),(IF(UPPER(R6)=\"CELL PHONE (PUSH TO TALK)\",INDIRECT(CONCATENATE(Q6,\"_CarrierPT\")),(INDIRECT(CONCATENATE(Q6,\"_Carrier\"))))))","v":{"$error":"#REF!"}},null,null,null,null,"*Windows 7 Enterprise 64"]
[null,null,null,null,null,{"$f":"INDIRECT(INDEX(INDIRECT(CONCATENATE(VLOOKUP(Q6,B_PAYMENT_Lookup,2,FALSE),\"_OS\")),MATCH(R6,INDIRECT(RIGHT(Q6,LEN(Q6)-4)),0),3))","v":{"$error":"#NAME?"}},{"$f":"IF(ISERR(FIND(\"Cell\",B100)),CONCATENATE(Q6,\"_DC_C\"),CONCATENATE(Q6,\"_DC\"))","v":"_DC"},null,null,null,null,"Unix"]
[null,null,null,null,null,{"$f":"CONCATENATE(VLOOKUP(B53,B_None_Lookup,2,FALSE),\"_OS\")","v":{"$error":"#NAME?"}},{"$f":"IF(UPPER(LEFT(W8,4))=\"KEEP\",INDIRECT(Keep),(INDIRECT(CONCATENATE(S8,(VLOOKUP((CONCATENATE(S8,\"_\",T8,\"_\",U8)),INDIRECT(CONCATENATE(S8,\"_DeviceLookup\")),2,FALSE))))))","v":{"$error":"#REF!"}},null,null,"_OS4","Apple Desktop, Apple Laptop, Apple LW Laptop, Apple Ultra LW Laptop","Mac OSX"]
[null,null,null,null,null,null,null,null,null,"_OS5","Thin Client Laptop, Thin Client Desktop","N/A"]
[null,null,null,null,null,null,null,null,null,"_OS6","Custom - Microsoft Compatible","None"]
[null,"This cell is for Empty Seat type",null,null,null,null,null,null,null,null,null,"Windows 7 Enterprise 32"]
[null,null,null,null,null,null,null,null,null,null,null,"Windows 7 Enterprise 64"]
[null,"ESV",null,null,null,"System Admin",null,null,null,null,null,"RedHat Linux"]
[null,"Basic Microsoft Operating Systems Analysis Services","R-1",null,null,"ACES",null,null,null,"_OS7","Custom - Apple Compatible","None"]
[null,"Advanced Microsoft Operating Systems Analysis Services","R-2",null,null,"Local",null,null,null,null,null,"Mac OSX"]
[null,"Basic Apple Operating Systems Analysis Services","R-3",null,null,"Both",null,null,null,"_OS8","Custom - Unix Compatible","None"]
[null,"Advanced Apple Operating Systems Analysis Services","R-4",null,null,null,null,null,null,null,null,"Unix"]
[null,"Basic Linux Operating Systems Analysis Services","R-5",null,null,null,null,null,null,"_SL2","Wintel Ultra Lightweight Laptop","None"]
[null,"Advanced Linux Operating Systems Analysis Services","R-6",null,null,null,null,null,null,null,null,"Microsoft"]
[null,"Basic UNIX Operating Systems Analysis Services ","R-7",null,null,null,null,null,null,"_SL6","Custom - Microsoft Compatible","None"]
[null,"Advanced UNIX Operating Systems Analysis Services","R-8",null,null,null,null,null,null,null,null,"Microsoft"]
[null,"Basic Database Administration Services","R-9",null,null,null,null,null,null,null,null,"Linux"]
[null,"Advanced Database Administration Services","R-10",null,null,null,null,null,null,"_SL7","Custom - Apple Compatible","None"]
[null,"Basic Network Peripheral Technician Services","R-11",null,null,null,null,null,null,null,null,"Apple"]
[null,"Advanced Network Peripheral Technician Services","R-12",null,null,null,null,null,null,"_SL8","Custom - Unix Compatible","None"]
[null,null,null,null,null,null,null,null,null,null,null,"Unix"]
[null,"None - OS/Standard Load/Sys Admin","OS CLIN","Sload CLIN","SysAdm CLIN"]
[null,"None","D-7","D-28","D-19"]
[null,"Microsoft","D-8","D-24","D-20"]
[null,"Apple","D-9","D-25","D-21"]
[null,"Linux","D-10","D-26","D-22"]
[null,"Unix","D-11","D-27","D-23"]
[null,"N/A"]
[]
[]
[]
[null,null,"AT&T"]
[null,null,"Verizon"]
[]
[]
[null,null,null,null,"Domestic Calling",null,"Camera","Voicemail","Tethering","Int. Calling","Return to Service","Pager"]
["S","Cell Phone","AT&T",null,"500 Minutes",null,"Included",null,null,null,2,"I-12","I-25"]
["Pager","Smart Phone (RIM)","T-Mobile",null,"1200 Minutes",null,"None",null,null,null,8,"I-13","I-26"]
["Cancel","Smart Phone (Apple)","Verizon",null,"Unlimited",null,null,null,null,null,"None"]
["B","Cell Phone (Push to Talk)","American Messaging",null,"Data Only"]
["M","iPad (WiFi only)","USA Mobility"]
["Aircard","iPad (3G Data Plan)"]
["Cancel"]
["iPad_S",null,null,null,"DC","AM","USAMOB","VM","AM","USAMOB","Octel msg","AM","USAMOB"]
["iPad_M","Numeric","I-1",null,"Local Only","I-4","I-17","None","I-8","I-21","None","I-10","I-23"]
["GO_Service_Only","Alphanumeric One-way","I-3",null,"Statewide","I-5","I-18","Sent to Pager","I-9","I-22","Enabled","I-11","I-24"]
[null,"Alphanumeric Two-way","I-3",null,"Nationwide","I-6","I-19","N/A",null,null,"N/A"]
[null,null,null,null,"800 Number","I-7","I-20"]
[]
[]
[]
[null,"Transition"]
[null,"Keep - Refresh on eligibility date",null,null,"Wireless Aircard",null,"AT&T",null,"N/A"]
[null,"Refresh now",null,null,"MIFI Hotspot",null,"Sprint"]
[null,"Cancel Service",null,null,null,null,"Verizon"]
[null,null,null,null,null,null,"American Messaging"]
[null,null,null,null,null,null,"USA Mobility"]
[]
[]
[]
[null,"Voicemail","Carrier 1","Carrier 2","Carrier3"]
[null,"Included","F-6","F-19","F-32"]
["Cell Phones","None","F-7","F-20","F-33"]
[null,"Included","H-10","H-30","H-50"]
["Smart Phones (B)","None","H-11","H-31","H-51"]
[null,"Included","GG-11","GG-36","GG-61"]
["Smart Phones (M)","None","GG-12","GG-37","GG-62"]
[]
[null,"Tether","Carrier 1","Carrier 2","Carrier3"]
[null,"None","H-19","H-39","H-59"]
["Smart Phones (B)","Included","H-20","H-40","H-60"]
[null,"None","GG-20","GG-45","GG-70"]
["Smart Phones (M)","Included","GG-21","GG-46","GG-71"]
[]
[null,"Int. Calling","Carrier 1","Carrier 2","Carrier3"]
[null,"Included","F-10","F-23","F-36"]
["Cell Phones (B)","None","F-11","F-24","F-37"]
[null,"Included","H-15","H-35","H-55"]
["Smart Phones (B)","None","H-16","H-36","H-56"]
[null,"Included","GG-16","GG-41","GG-66"]
["Smart Phones (M)","None","GG-17","GG-42","GG-67"]
[]
[null,"Int Calling Service"]
["Cell and Smart Phones","Included","SS-1","SS-12","SS-18"]
[]
[null,"Int Texting Service"]
["Cell and Smart Phones","Included","SS-3","N/A","SS-20"]
[]
[null,"Int. Data Plan Service"]
["Smart Phones only","Included","SS-2","SS-13","SS-19"]
["Aircards","Included",null,"SS-17","SS-22"]
[null,"Included - 50MB","SS-8"]
[null,"Included - 125MB","SS-9"]
[null,"Included - 275MB","SS-10"]
[null,"Included - 800MB","SS-11"]
[null,"None"]
[]
["Verizon iPads","Included","N/A","N/A","SS-21"]
["AT&T iPads","Included - 50MB","SS-4"]
[null,"Included - 125MB","SS-5"]
[null,"Included - 275MB","SS-6"]
[null,"Included - 800MB","SS-7"]
[null,"None"]
[]
[null,"Camera","Carrier 1","Carrier 2","Carrier3"]
["Cell Phones","Included","F-12","F-25","F-38"]
[null,"None","F-13","F-26","F-39"]
[null,"Included","H-17","H-37","H-57"]
["Smart Phones (B)","None","H-18","H-38","H-58"]
[null,"Included","GG-18","GG-43","GG-68"]
["Smart Phones (M)","None","GG-19","GG-44","GG-69"]
["iPad_M","Included","U-12","N/A","U-12"]
[null,"None","U-13","N/A","U-14"]
[]
[]
[null,"RTS","Carrier 1","Carrier 2","Carrier3"]
["Cell Phones",2,"F-8","F-21","F-34"]
[null,8,"F-9","F-22","F-35"]
[null,"None","H-12","H-32","H-52"]
["Smart Phones (B)",2,"H-13","H-33","H-53"]
[null,8,"H-14","H-34","H-54"]
[null,"None","GG-13","GG-38","GG-63"]
["Smart Phones (M)",2,"GG-14","GG-39","GG-64"]
[null,8,"GG-15","GG-40","GG-65"]
["iPADS_M, Service_Only","None","U-15","N/A","U-15"]
[null,2,"U-16","N/A","U-16"]
[null,8,"U-17","N/A","U-17"]
[]
[null,"Hardware Refresh","Carrier 1","Carrier 2","Carrier3"]
["Cell Phones","None","F-2","F-15","F-28"]
["Smart Phones (B)","None","H-5","H-25","H-45"]

{"sheet":"Locations","index":10,"n_rows":30,"n_cols":9,"rows_kept":30,"cut":false,"hidden":false,"merged":[]}
["Country","Office Location","Site Code","NORMALIZED LOCATION NAME","Address","City","State","Zip","Machine Prefix Code"]
["USA","Ames Research Center ",{"$f":"T(\"ARC\")","v":"ARC"},"NASA-US-Ames Research Center","","Moffett Field","California","94035","AR"]
["USA","Dryden Aircraft Operations Facility",{"$f":"T(\"DAOF\")","v":"DAOF"},"NASA-US-Dryden Aircraft Operations Facility","","","California","93523","DA"]
["USA","Dryden Flight Research Center ",{"$f":"T(\"DFRC\")","v":"DFRC"},"NASA-US-Dryden Flight Research Center","4800 Lilly Drive","Edwards","California","93523","DF"]
["USA","JSC - El Paso Forward Operating Location",{"$f":"T(\"JSC - EPSO\")","v":"JSC - EPSO"},"NASA-US-El Paso Forward Operating Location","","El Paso","Texas","","EP"]
["USA","Glenn Research Center Main Campus ",{"$f":"T(\"GRC\")","v":"GRC"},"NASA-US-Glenn Research Center Main Campus","21000 Brookpark Road","Cleveland","Ohio","44135","GR"]
["USA","GSFC - Goddard Institute for Space Studies ",{"$f":"T(\"GISS\")","v":"GISS"},"NASA-US-Goddard Institute for Space Studies","2880 Broadway","New York","New York","10025","GI"]
["USA","Goddard Space Flight Center Main Campus ",{"$f":"T(\"GSFC\")","v":"GSFC"},"NASA-US-Goddard Space Flight Center Main Campus","8800 Greenbelt Road","Greenbelt","Maryland","20771","GS"]
["USA","Headquarters Main Campus",{"$f":"T(\"HQ\")","v":"HQ"},"NASA-US-Headquarters Main Campus","300 E Street SW","Washington D.C.","Virginia","","HQ"]
["USA","Hubble Space Telescope",{"$f":"T(\"HST\")","v":"HST"},"NASA-US-Hubble Space Telescope","7474 Greenway Center Dr","Greenbelt","Maryland","20770","HS"]
["USA","GSFC - Independent Verification and Validation Facility ",{"$f":"T(\"IV&V\")","v":"IV&V"},"NASA-US-Independent Verification and Validation Facility","100 University Drive","Farimont","West Virginia","26554","IV"]
["USA","HQ-JPL NASA Management Office",{"$f":"T(\"HQ-JPL\")","v":"HQ-JPL"},"NASA-US-JPL NASA Management Office","","","","","JM"]
["USA","Jet Propulsion Laboratory ",{"$f":"T(\"JPL\")","v":"JPL"},"NASA-US-Jet Propulsion Laboratory","4800 Oak Grove Drive","Pasedena","California","91109","JP"]
["USA","Johnson Space Center Main Campus",{"$f":"T(\"JSC\")","v":"JSC"},"NASA-US-Johnson Space Center Main Campus","2101 NASA Parkway","Houston","Texas","77058","JS"]
["USA","Joint Polar Satellite System",{"$f":"T(\"JPSS\")","v":"JPSS"},"NASA-US-Joint Polar Satellite System","7700 Hubble Drive","Lanham","Maryland","20706","JO"]
["USA","Kennedy Space Center Main Campus",{"$f":"T(\"KSC\")","v":"KSC"},"NASA-US-Kennedy Space Center Main Campus","","","Florida","32899","KS"]
["USA","Langley Research Center",{"$f":"T(\"LaRC\")","v":"LaRC"},"NASA-US-Langley Research Center","","Hampton","Virginia","23681","LA"]
["USA","Marshall Space Flight Center Main Campus",{"$f":"T(\"MSFC\")","v":"MSFC"},"NASA-US-Marshall Splace Flight Center Main Campus","","Huntsville","Alabama","35812","MS"]
["USA","MSFC - Michoud Assembly Facility",{"$f":"T(\"MAF\")","v":"MAF"},"NASA-US-Michoud Assembly Facility","13800 Old Gentilly Rd","New Orleans","Louisiana","70129","MA"]
["USA","MSFC - National Space Science & Technology Center",{"$f":"T(\"NSSTC\")","v":"NSSTC"},"NASA-US-National Space Science & Technology Center","","","","","ST"]
["USA","GRC - Plumbrook Facility",{"$f":"T(\"GRC - PLBF\")","v":"GRC - PLBF"},"NASA-US-Plum Brook Station","6100 Columbus Avenue","Sandusky","Ohio","44870","PB"]
["USA","Hubble Space Telescope",{"$f":"T(\"PMR\")","v":"PMR"},"NASA-US-Power Mill Road","4600 Powder Mill Rd","Beltsville","Maryland","20705","PM"]
["USA","NASA Shared Services Center",{"$f":"T(\"NSSC\")","v":"NSSC"},"NASA-US-Shared Services Center","Building 1111 C Road","","Mississippi","39529","NS"]
["USA","Stennis Space Center",{"$f":"T(\"SSC\")","v":"SSC"},"NASA-US-Stennis Space Center","","","Mississippi","39529","SS"]
["USA","KSC - Transoceanic Abort Landing  Sites",{"$f":"T(\"TAL\")","v":"TAL"},"NASA-US-Transoceanic Abort Landing Sites","","","","","KT"]
["USA","KSC - Vandenberg Air Force Base ",{"$f":"T(\"VAFB\")","v":"VAFB"},"NASA-US-Vandenberg Air Force Base","","","","","KV"]
["USA","GSFC - Wallops Flight Facility ",{"$f":"T(\"WFF\")","v":"WFF"},"NASA-US-Wallops Flight Facility","","Wallops Island","Virginia","23337","WF"]
["USA","GSFC - White Sands Complex",{"$f":"T(\"WSC\")","v":"WSC"},"NASA-US-White Sands Complex","","","","","WS"]
["USA","JSC - White Sands Test Facility",{"$f":"T(\"WSTF\")","v":"WSTF"},"NASA-US-White Sands Test Facility","P.O. Box 20","Las Cruces","New Mexico","88004","WT"]
["USA","JSC - White Sands Space Harbor","WSTF - WSSH","NASA-US-White Sands Space Harbor","","","","","SH"]

{"sheet":"Instructions","index":11,"n_rows":12,"n_cols":1,"rows_kept":12,"cut":false,"hidden":false,"merged":[]}
["Instructions"]
["NOTE: If you get get a Security Warning message in Excel 2007, be sure to click the Options button and select Enable this content."]
[]
[]
[]
[]
["For detailed instructions, please reference the \"Field Definitions and Instructions for the ACES Order Template\" instruction guide"]
[]
[]
[]
[]
["For specific questions or technical issues related to this Bulk Order Template please contact your local HP CTIM"]